{"text_format":"1","workbook":"xlsx","n_sheets":7,"sheets":["D1 VET Gr A","D1 VET Gr B","D2 VET Gr A","D2 VET Gr B","D3 Gr Unique","REPARTITION","CLASST 2023 VETERANS"],"not_rendered":{"charts":0,"images":16,"macros":1,"external_links":0,"defined_names":5,"comments":0,"pivot_tables":0},"unopened":[],"bounds":{"document_bytes":16777216,"sheet_cells":100000,"rows_first":2000,"rows_last":500,"rows_between":2000,"halvings":0,"cell_chars":16384,"cell_head_chars":4096},"cells_cut":0,"cells_raw":0,"read":"whole","date_system":"1900"}

{"sheet":"D1 VET Gr A","index":0,"n_rows":328,"n_cols":22,"rows_kept":328,"cut":false,"hidden":false,"merged":[[12,6,12,9],[10,6,10,9],[0,2,0,5],[5,2,5,5],[10,2,10,5],[0,6,0,9],[5,6,5,9],[29,1,29,10],[13,6,13,7],[26,1,26,10],[27,1,27,10],[28,1,28,10],[15,2,15,5],[20,2,20,5]]}
[1,"USC SENS 1","  Match 1 : au 1er nommé le Mardi 26 Mars à 14h30",null,null,null,"  Match 6 : au 1er nommé le Mardi 28 Mai à 14h30",null,null,null,null,null,null,null,null,null,null,"Pt","TPt","T+/-","+","-"]
[2,"USC SENS 3",{"$f":"$B$1","v":"USC SENS 1"},{"$f":"$B$2","v":"USC SENS 3"},30,{"$f":"IF(E2=\"\",\"\",IF(E2=\"F\",\"G\",IF(E2=\"G\",\"F\",36-E2)))","v":6},{"$f":"$B$1","v":"USC SENS 1"},{"$f":"$B$6","v":"MIGENNES 1"},null,{"$f":"IF(I2=\"\",\"\",IF(I2=\"F\",\"G\",IF(I2=\"G\",\"F\",36-I2)))","v":""},null,null,null,null,null,"MIGENNES 1",20,{"$f":"IF(Q2=\"\",\"\",IF(Q2=\"F\",0,IF(Q2=18,2,IF(Q2>18,3,1))))","v":3},null,null,{"$f":"IF(Q2=\"G\",19,IF(Q2=\"\",0,Q2))","v":20},{"$f":"IF(Q2=\"\",\"\",IF(U2=36,36,IF(U2=0,-36,IF(U2=19,19,IF(U2=\"f\",-19,U2-(36-U2))))))","v":4}]
[3,"PONT / YONNE 1",{"$f":"$B$3","v":"PONT / YONNE 1"},{"$f":"$B$4","v":"PARON 1"},8,28,{"$f":"$B$3","v":"PONT / YONNE 1"},{"$f":"$B$5","v":"VERON 1"},null,"",null,null,null,null,null,"MIGENNES 1",22,3,null,null,{"$f":"IF(Q3=\"G\",19,IF(Q3=\"\",0,Q3))","v":22},{"$f":"IF(Q3=\"\",\"\",IF(U3=36,36,IF(U3=0,-36,IF(U3=19,19,IF(U3=\"f\",-19,U3-(36-U3))))))","v":8}]
[4,"PARON 1",{"$f":"$B$5","v":"VERON 1"},{"$f":"$B$6","v":"MIGENNES 1"},16,20,{"$f":"$B$7","v":"SENAN 1"},{"$f":"$B$4","v":"PARON 1"},null,"",null,null,null,null,null,"MIGENNES 1",20,3,null,null,20,4]
[5,"VERON 1",{"$f":"$B$7","v":"SENAN 1"},{"$f":"$B$8","v":"MONETEAU 1"},22,14,{"$f":"$B$8","v":"MONETEAU 1"},{"$f":"$B$2","v":"USC SENS 3"},null,"",null,null,null,null,null,"MIGENNES 1",null,"",null,null,0,""]
[6,"MIGENNES 1","  Match 2 : au 1er nommé le Mardi 09 Avril à 14h30",null,null,null,"  Match 7 : au 1er nommé le Mardi 04 Juin à 14h30",null,null,null,null,null,null,null,null,"MIGENNES 1","","",null,null,0,""]
[7,"SENAN 1",{"$f":"$B$4","v":"PARON 1"},{"$f":"$B$1","v":"USC SENS 1"},16,{"$f":"IF(E7=\"\",\"\",IF(E7=\"F\",\"G\",IF(E7=\"G\",\"F\",36-E7)))","v":20},{"$f":"$B$6","v":"MIGENNES 1"},{"$f":"$B$7","v":"SENAN 1"},null,{"$f":"IF(I7=\"\",\"\",IF(I7=\"F\",\"G\",IF(I7=\"G\",\"F\",36-I7)))","v":""},null,null,null,null,null,"MIGENNES 1","","",null,null,0,""]
[8,"MONETEAU 1",{"$f":"$B$6","v":"MIGENNES 1"},{"$f":"$B$3","v":"PONT / YONNE 1"},22,14,{"$f":"$B$4","v":"PARON 1"},{"$f":"$B$2","v":"USC SENS 3"},null,"",null,null,null,null,null,"MIGENNES 1",null,"",{"$f":"SUM(R2:R8)","v":9},{"$f":"SUM(V2:V8)","v":16},0,""]
[null,null,{"$f":"$B$2","v":"USC SENS 3"},{"$f":"$B$7","v":"SENAN 1"},28,8,{"$f":"$B$5","v":"VERON 1"},{"$f":"$B$1","v":"USC SENS 1"},null,"",null,null,null,null,null,"MONETEAU 1",14,1,null,null,14,-8]
[null,null,{"$f":"$B$8","v":"MONETEAU 1"},{"$f":"$B$5","v":"VERON 1"},20,16,{"$f":"$B$3","v":"PONT / YONNE 1"},{"$f":"$B$8","v":"MONETEAU 1"},null,"",null,null,null,null,null,"MONETEAU 1",20,3,null,null,20,4]
["Rappel:",null,"  Match 3 : au 1er nommé le Mardi 23 Avril à 14h30",null,null,null,null,null,null,null,null,null,null,null,null,"MONETEAU 1",16,1,null,null,16,-4]
["Seules les Cases Blanches",null,{"$f":"$B$4","v":"PARON 1"},{"$f":"$B$5","v":"VERON 1"},22,{"$f":"IF(E12=\"\",\"\",IF(E12=\"F\",\"G\",IF(E12=\"G\",\"F\",36-E12)))","v":14},null,null,null,null,null,null,null,null,null,"MONETEAU 1","","",null,null,0,""]
["sont à remplir",null,{"$f":"$B$2","v":"USC SENS 3"},{"$f":"$B$3","v":"PONT / YONNE 1"},34,2,"Classement",null,null,null,null,null,null,null,null,"MONETEAU 1",null,"",null,null,0,""]
[null,null,{"$f":"$B$7","v":"SENAN 1"},{"$f":"$B$1","v":"USC SENS 1"},18,18,null,null,"Pts","+/-",null,null,null,null,null,"MONETEAU 1",null,"",null,null,0,""]
[null,null,{"$f":"$B$6","v":"MIGENNES 1"},{"$f":"$B$8","v":"MONETEAU 1"},20,16,1,"MIGENNES 1",9,16,null,null,null,null,null,"MONETEAU 1","","",{"$f":"SUM(R9:R15)","v":5},{"$f":"SUM(V9:V15)","v":-8},0,""]
[null,null,"  Match 4 : au 1er nommé le Mardi 07 Mai à 14h30",null,null,null,2,"USC SENS 1",8,28,null,null,null,null,null,"PARON 1",28,3,null,null,28,20]
[null,null,{"$f":"$B$5","v":"VERON 1"},{"$f":"$B$2","v":"USC SENS 3"},null,{"$f":"IF(E17=\"\",\"\",IF(E17=\"F\",\"G\",IF(E17=\"G\",\"F\",36-E17)))","v":""},3,"USC SENS 3",7,28,null,null,null,null,null,"PARON 1",16,1,null,null,16,-4]
[null,null,{"$f":"$B$6","v":"MIGENNES 1"},{"$f":"$B$4","v":"PARON 1"},null,{"$f":"IF(E18=\"\",\"\",IF(E18=\"F\",\"G\",IF(E18=\"G\",\"F\",36-E18)))","v":""},4,"PARON 1",7,24,null,null,null,null,null,"PARON 1",22,3,null,null,22,8]
[null,null,{"$f":"$B$3","v":"PONT / YONNE 1"},{"$f":"$B$7","v":"SENAN 1"},null,{"$f":"IF(E19=\"\",\"\",IF(E19=\"F\",\"G\",IF(E19=\"G\",\"F\",36-E19)))","v":""},5,"SENAN 1",6,-12,null,null,null,null,null,"PARON 1","","",null,null,0,""]
[null,null,{"$f":"$B$1","v":"USC SENS 1"},{"$f":"$B$8","v":"MONETEAU 1"},null,{"$f":"IF(E20=\"\",\"\",IF(E20=\"F\",\"G\",IF(E20=\"G\",\"F\",36-E20)))","v":""},6,"MONETEAU 1",5,-8,null,null,null,null,null,"PARON 1","","",null,null,0,""]
[null,null,"  Match 5 : au 1er nommé le Mardi 21 Mai à 14h30",null,null,null,7,"VERON 1",3,-16,null,null,null,null,null,"PARON 1","","",null,null,0,""]
[null,null,{"$f":"$B$1","v":"USC SENS 1"},{"$f":"$B$3","v":"PONT / YONNE 1"},null,{"$f":"IF(E22=\"\",\"\",IF(E22=\"F\",\"G\",IF(E22=\"G\",\"F\",36-E22)))","v":""},8,"PONT / YONNE 1",3,-60,null,null,null,null,null,"PARON 1",null,"",{"$f":"SUM(R16:R22)","v":7},{"$f":"SUM(V16:V22)","v":24},0,""]
[null,null,{"$f":"$B$2","v":"USC SENS 3"},{"$f":"$B$6","v":"MIGENNES 1"},null,{"$f":"IF(E23=\"\",\"\",IF(E23=\"F\",\"G\",IF(E23=\"G\",\"F\",36-E23)))","v":""},null,null,null,null,null,null,null,null,null,"PONT / YONNE 1",8,1,null,null,8,-20]
[null,null,{"$f":"$B$7","v":"SENAN 1"},{"$f":"$B$5","v":"VERON 1"},null,{"$f":"IF(E24=\"\",\"\",IF(E24=\"F\",\"G\",IF(E24=\"G\",\"F\",36-E24)))","v":""},null,null,null,null,null,null,null,null,null,"PONT / YONNE 1",14,1,null,null,14,-8]
[null,null,{"$f":"$B$8","v":"MONETEAU 1"},{"$f":"$B$4","v":"PARON 1"},null,{"$f":"IF(E25=\"\",\"\",IF(E25=\"F\",\"G\",IF(E25=\"G\",\"F\",36-E25)))","v":""},null,null,null,null,null,null,null,null,null,"PONT / YONNE 1",2,1,null,null,2,-32]
[null,null,null,null,null,null,null,null,null,null,null,null,null,null,null,"PONT / YONNE 1",null,"",null,null,0,""]
[null,"FÉDÉRATION FRANÇAISE DE PÉTANQUE ET JEU PROVENÇAL",null,null,null,null,null,null,null,null,null,null,null,null,null,"PONT / YONNE 1","","",null,null,0,""]
[null,"AGRÉÉE PAR LE MINISTÈRE DE LA JEUNESSE ET  DES SPORTS ",null,null,null,null,null,null,null,null,null,null,null,null,null,"PONT / YONNE 1",null,"",null,null,0,""]
[null,"TERRITOIRE DE BOURGOGNE ",null,null,null,null,null,null,null,null,null,null,null,null,null,"PONT / YONNE 1",null,"",{"$f":"SUM(R23:R29)","v":3},{"$f":"SUM(V23:V29)","v":-60},0,""]
[null,"Championnat Départemental des Clubs 2024 Vétérans Division 1 Groupe A",null,null,null,null,null,null,null,null,null,null,null,null,null,"SENAN 1",22,3,null,null,22,8]
[null,null,null,null,null,null,null,null,null,null,null,null,null,null,null,"SENAN 1",8,1,null,null,8,-20]
[null,null,null,null,null,null,null,null,null,null,null,null,null,null,null,"SENAN 1",18,2,null,null,18,0]
[null,null,null,null,null,null,null,null,null,null,null,null,null,null,null,"SENAN 1","","",null,null,0,""]
[null,null,null,null,null,null,null,null,null,null,null,null,null,null,null,"SENAN 1",null,"",null,null,0,""]
[null,null,null,null,null,null,null,null,null,null,null,null,null,null,null,"SENAN 1",null,"",null,null,0,""]
[null,null,null,null,null,null,null,null,null,null,null,null,null,null,null,"SENAN 1","","",{"$f":"SUM(R30:R36)","v":6},{"$f":"SUM(V30:V36)","v":-12},0,""]
[null,null,null,null,null,null,null,null,null,null,null,null,null,null,null,"USC SENS 1",30,3,null,null,30,24]
[null,null,null,null,null,null,null,null,null,null,null,null,null,null,null,"USC SENS 1",20,3,null,null,20,4]
[null,null,null,null,null,null,null,null,null,null,null,null,null,null,null,"USC SENS 1",18,2,null,null,18,0]
[null,null,null,null,null,null,null,null,null,null,null,null,null,null,null,"USC SENS 1",null,"",null,null,0,""]
[null,null,null,null,null,null,null,null,null,null,null,null,null,null,null,"USC SENS 1",null,"",null,null,0,""]
[null,null,null,null,null,null,null,null,null,null,null,null,null,null,null,"USC SENS 1",null,"",null,null,0,""]
[null,null,null,null,null,null,null,null,null,null,null,null,null,null,null,"USC SENS 1","","",{"$f":"SUM(R37:R43)","v":8},{"$f":"SUM(V37:V43)","v":28},0,""]
[null,null,null,null,null,null,null,null,null,null,null,null,null,null,null,"USC SENS 3",6,1,null,null,6,-24]
[null,null,null,null,null,null,null,null,null,null,null,null,null,null,null,"USC SENS 3",28,3,null,null,28,20]
[null,null,null,null,null,null,null,null,null,null,null,null,null,null,null,"USC SENS 3",34,3,null,null,34,32]
[null,null,null,null,null,null,null,null,null,null,null,null,null,null,null,"USC SENS 3","","",null,null,0,""]
[null,null,null,null,null,null,null,null,null,null,null,null,null,null,null,"USC SENS 3",null,"",null,null,0,""]
[null,null,null,null,null,null,null,null,null,null,null,null,null,null,null,"USC SENS 3","","",null,null,0,""]
[null,null,null,null,null,null,null,null,null,null,null,null,null,null,null,"USC SENS 3","","",{"$f":"SUM(R44:R50)","v":7},{"$f":"SUM(V44:V50)","v":28},0,""]
[null,null,null,null,null,null,null,null,null,null,null,null,null,null,null,"VERON 1",16,1,null,null,16,-4]
[null,null,null,null,null,null,null,null,null,null,null,null,null,null,null,"VERON 1",16,1,null,null,16,-4]
[null,null,null,null,null,null,null,null,null,null,null,null,null,null,null,"VERON 1",14,1,null,null,14,-8]
[null,null,null,null,null,null,null,null,null,null,null,null,null,null,null,"VERON 1",null,"",null,null,0,""]
[null,null,null,null,null,null,null,null,null,null,null,null,null,null,null,"VERON 1","","",null,null,0,""]
[null,null,null,null,null,null,null,null,null,null,null,null,null,null,null,"VERON 1","","",null,null,0,""]
[null,null,null,null,null,null,null,null,null,null,null,null,null,null,null,"VERON 1",null,"",{"$f":"SUM(R51:R57)","v":3},{"$f":"SUM(V51:V57)","v":-16},0,""]
[null,null,null,null,null,null,null,null,null,null,null,null,null,null,null,null,null,null,null,null,null,{"$f":"IF(U58=0,\"\",IF(U58=19,\"\",U58-(36-U58)))","v":""}]
[]
[]
[]
[]
[]
[]
[]
[]
[]
[]
[]
[]
[]
[]
[]
[]
[]
[]
[]
[]
[]
[]
[]
[]
[]
[]
[]
[]
[]
[]
[]
[]
[]
[]
[]
[]
[]
[]
[]
[]
[]
[]
[]
[]
[]
[]
[]
[]
[]
[]
[]
[]
[]
[]
[]
[]
[]
[]
[]
[]
[]
[]
[]
[]
[]
[]
[]
[]
[]
[]
[]
[]
[]
[]
[]
[]
[]
[]
[]
[]
[]
[]
[]
[]
[]
[]
[]
[]
[]
[]
[]
[]
[]
[]
[]
[]
[]
[]
[]
[]
[]
[]
[]
[]
[]
[]
[]
[]
[]
[]
[]
[]
[]
[]
[]
[]
[]
[]
[]
[]
[]
[]
[]
[]
[]
[]
[]
[]
[]
[]
[]
[]
[]
[]
[]
[]
[]
[]
[]
[]
[]
[]
[]
[]
[]
[]
[]
[]
[]
[]
[]
[]
[]
[]
[]
[]
[]
[]
[]
[]
[]
[]
[]
[]
[]
[]
[]
[]
[]
[]
[]
[]
[]
[]
[]
[]
[]
[]
[]
[]
[]
[]
[]
[]
[]
[]
[]
[]
[]
[]
[]
[]
[]
[]
[]
[]
[]
[]
[]
[]
[]
[]
[]
[]
[]
[]
[]
[]
[]
[]
[]
[]
[]
[]
[]
[]
[]
[]
[]
[]
[]
[]
[]
[]
[]
[]
[]
[]
[]
[]
[]
[]
[]
[]
[]
[null,"1) Remplir la liste des Clubs composant le Groupe (Colonne B1 à B14)"]
[]
[null,"2) Le calendrier se fait automatiquement"]
[]
[null,"3) Pour chaque rencontre: mettre uniquemment le score de la premiere équipe (Case Blanche,la rouge sera remplie automatiquement)"]
[]
[null,"4) Le score de l'adversaire se mettra automatiquement"]
[]
[null,"Exemple:"]
[null,"L' équipe 1 Gagne par 32 à 4 : il faut mettre 32 pour le score de L'équipe 1 contre l'équipe 2 (4 sera automatique)"]
[null,null,"Essayez : Tapez 32 ici"]
[]
[null,null,{"$f":"$B$1","v":"USC SENS 1"},{"$f":"$B$2","v":"USC SENS 3"},null,{"$f":"IF(E306=\"\",\"\",IF(E306=\"F\",\"G\",IF(E306=\"G\",\"F\",36-E306)))","v":""}]
[null,null,{"$f":"$B$3","v":"PONT / YONNE 1"},"Equipe 4",null,{"$f":"IF(E307=\"\",\"\",IF(E307=\"F\",\"G\",IF(E307=\"G\",\"F\",36-E307)))","v":""}]
[]
[null,null,"Essayez : Tapez 17 ici"]
[]
[null,"L' équipe 4 Gagne par 19 à 17 : il faut mettre 17 pour le score de L'équipe 3 contre l'équipe 2 (19  sera automatique)"]
[]
[null,"5) Pour le Forfait : Mettre F si Premiere equipe Forfait sinon mettre G"]
[]
[null,"Exemple:"]
[null,"L' équipe 1 est forfait : il faut mettre un F pour le score de L'équipe 1 contre l'équipe 2 (G est automatique)"]
[null,null,"Essayez : Tapez un F ici"]
[]
[null,null,{"$f":"$B$1","v":"USC SENS 1"},{"$f":"$B$2","v":"USC SENS 3"},null,{"$f":"IF(E319=\"\",\"\",IF(E319=\"F\",\"G\",IF(E319=\"G\",\"F\",36-E319)))","v":""}]
[null,null,{"$f":"$B$3","v":"PONT / YONNE 1"},"Equipe 4",null,{"$f":"IF(E320=\"\",\"\",IF(E320=\"F\",\"G\",IF(E320=\"G\",\"F\",36-E320)))","v":""}]
[]
[null,null,"Essayez : Tapez un G ici"]
[null,"L' équipe 4 est forfait : il faut mettre un G pour le score de L'équipe 3 contre l'équipe 4 (F est automatique)"]
[]
[]
[null,"En cas de Forfait : le score attribué est 19 à 0"]
[]
[null,"Ne pas oublier d'appuyer sur le bouton Maj Classement sous le Classement"]

{"sheet":"D1 VET Gr B","index":1,"n_rows":328,"n_cols":22,"rows_kept":328,"cut":false,"hidden":false,"merged":[[28,1,28,10],[29,1,29,10],[12,6,12,9],[13,6,13,7],[15,2,15,5],[20,2,20,5],[26,1,26,10],[27,1,27,10],[0,2,0,5],[0,6,0,9],[5,2,5,5],[5,6,5,9],[10,2,10,5],[10,6,10,9]]}
[1,"USC SENS 2","  Match 1 : au 1er nommé le Mardi 28 Mars à 14h30",null,null,null,"  Match 6 : au 1er nommé le Mardi 28 Mai à 14h30",null,null,null,null,null,null,null,null,null,null,"Pt","TPt","T+/-","+","-"]
[2,"RAVIERES 1",{"$f":"$B$1","v":"USC SENS 2"},{"$f":"$B$2","v":"RAVIERES 1"},4,{"$f":"IF(E2=\"\",\"\",IF(E2=\"F\",\"G\",IF(E2=\"G\",\"F\",36-E2)))","v":32},{"$f":"$B$6","v":"APPOIGNY 1"},{"$f":"$B$1","v":"USC SENS 2"},null,{"$f":"IF(I2=\"\",\"\",IF(I2=\"F\",\"G\",IF(I2=\"G\",\"F\",36-I2)))","v":""},null,null,null,null,null,"ANCY LE FRANC 1",22,{"$f":"IF(Q2=\"\",\"\",IF(Q2=\"F\",0,IF(Q2=18,2,IF(Q2>18,3,1))))","v":3},null,null,{"$f":"IF(Q2=\"G\",19,IF(Q2=\"\",0,Q2))","v":22},{"$f":"IF(Q2=\"\",\"\",IF(U2=36,36,IF(U2=0,-36,IF(U2=19,19,IF(U2=\"f\",-19,U2-(36-U2))))))","v":8}]
[3,"ANCY LE FRANC 1",{"$f":"$B$3","v":"ANCY LE FRANC 1"},{"$f":"$B$4","v":"VAUX 1"},22,{"$f":"IF(E3=\"\",\"\",IF(E3=\"F\",\"G\",IF(E3=\"G\",\"F\",36-E3)))","v":14},{"$f":"$B$5","v":"STADE AUXERRE 2"},{"$f":"$B$3","v":"ANCY LE FRANC 1"},null,{"$f":"IF(I3=\"\",\"\",IF(I3=\"F\",\"G\",IF(I3=\"G\",\"F\",36-I3)))","v":""},null,null,null,null,null,"ANCY LE FRANC 1",14,1,null,null,14,-8]
[4,"VAUX 1",{"$f":"$B$5","v":"STADE AUXERRE 2"},{"$f":"$B$6","v":"APPOIGNY 1"},18,{"$f":"IF(E4=\"\",\"\",IF(E4=\"F\",\"G\",IF(E4=\"G\",\"F\",36-E4)))","v":18},{"$f":"$B$7","v":"CHARBUY 1"},{"$f":"$B$4","v":"VAUX 1"},null,{"$f":"IF(I4=\"\",\"\",IF(I4=\"F\",\"G\",IF(I4=\"G\",\"F\",36-I4)))","v":""},null,null,null,null,null,"ANCY LE FRANC 1",12,1,null,null,12,-12]
[5,"STADE AUXERRE 2",{"$f":"$B$7","v":"CHARBUY 1"},{"$f":"$B$8","v":"AVALLON 1"},8,{"$f":"IF(E5=\"\",\"\",IF(E5=\"F\",\"G\",IF(E5=\"G\",\"F\",36-E5)))","v":28},{"$f":"$B$8","v":"AVALLON 1"},{"$f":"$B$2","v":"RAVIERES 1"},null,{"$f":"IF(I5=\"\",\"\",IF(I5=\"F\",\"G\",IF(I5=\"G\",\"F\",36-I5)))","v":""},null,null,null,null,null,"ANCY LE FRANC 1",null,"",null,null,0,""]
[6,"APPOIGNY 1","  Match 2 : au 1er nommé le Mardi 09 Avril à 14h30",null,null,null,"  Match 7 : au 1er nommé le Mardi 04 Juin à 14h30",null,null,null,null,null,null,null,null,"ANCY LE FRANC 1","","",null,null,0,""]
[7,"CHARBUY 1",{"$f":"$B$4","v":"VAUX 1"},{"$f":"$B$1","v":"USC SENS 2"},26,{"$f":"IF(E7=\"\",\"\",IF(E7=\"F\",\"G\",IF(E7=\"G\",\"F\",36-E7)))","v":10},{"$f":"$B$6","v":"APPOIGNY 1"},{"$f":"$B$7","v":"CHARBUY 1"},null,{"$f":"IF(I7=\"\",\"\",IF(I7=\"F\",\"G\",IF(I7=\"G\",\"F\",36-I7)))","v":""},null,null,null,null,null,"ANCY LE FRANC 1","","",null,null,0,""]
[8,"AVALLON 1",{"$f":"$B$6","v":"APPOIGNY 1"},{"$f":"$B$3","v":"ANCY LE FRANC 1"},22,{"$f":"IF(E8=\"\",\"\",IF(E8=\"F\",\"G\",IF(E8=\"G\",\"F\",36-E8)))","v":14},{"$f":"$B$4","v":"VAUX 1"},{"$f":"$B$2","v":"RAVIERES 1"},null,{"$f":"IF(I8=\"\",\"\",IF(I8=\"F\",\"G\",IF(I8=\"G\",\"F\",36-I8)))","v":""},null,null,null,null,null,"ANCY LE FRANC 1",null,"",{"$f":"SUM(R2:R8)","v":5},{"$f":"SUM(V2:V8)","v":-12},0,""]
[null,null,{"$f":"$B$2","v":"RAVIERES 1"},{"$f":"$B$7","v":"CHARBUY 1"},26,{"$f":"IF(E9=\"\",\"\",IF(E9=\"F\",\"G\",IF(E9=\"G\",\"F\",36-E9)))","v":10},{"$f":"$B$1","v":"USC SENS 2"},{"$f":"$B$5","v":"STADE AUXERRE 2"},null,{"$f":"IF(I9=\"\",\"\",IF(I9=\"F\",\"G\",IF(I9=\"G\",\"F\",36-I9)))","v":""},null,null,null,null,null,"APPOIGNY 1",18,2,null,null,18,0]
[null,null,{"$f":"$B$8","v":"AVALLON 1"},{"$f":"$B$5","v":"STADE AUXERRE 2"},18,{"$f":"IF(E10=\"\",\"\",IF(E10=\"F\",\"G\",IF(E10=\"G\",\"F\",36-E10)))","v":18},{"$f":"$B$3","v":"ANCY LE FRANC 1"},{"$f":"$B$8","v":"AVALLON 1"},null,{"$f":"IF(I10=\"\",\"\",IF(I10=\"F\",\"G\",IF(I10=\"G\",\"F\",36-I10)))","v":""},null,null,null,null,null,"APPOIGNY 1",22,3,null,null,22,8]
["Rappel:",null,"  Match 3 : au 1er nommé le Mardi 23 Avril à 14h30",null,null,null,null,null,null,null,null,null,null,null,null,"APPOIGNY 1",16,1,null,null,16,-4]
["Seules les Cases Blanches",null,{"$f":"$B$4","v":"VAUX 1"},{"$f":"$B$5","v":"STADE AUXERRE 2"},22,{"$f":"IF(E12=\"\",\"\",IF(E12=\"F\",\"G\",IF(E12=\"G\",\"F\",36-E12)))","v":14},null,null,null,null,null,null,null,null,null,"APPOIGNY 1","","",null,null,0,""]
["sont à remplir",null,{"$f":"$B$2","v":"RAVIERES 1"},{"$f":"$B$3","v":"ANCY LE FRANC 1"},24,{"$f":"IF(E13=\"\",\"\",IF(E13=\"F\",\"G\",IF(E13=\"G\",\"F\",36-E13)))","v":12},"Classement",null,null,null,null,null,null,null,null,"APPOIGNY 1","","",null,null,0,""]
[null,null,{"$f":"$B$1","v":"USC SENS 2"},{"$f":"$B$7","v":"CHARBUY 1"},18,{"$f":"IF(E14=\"\",\"\",IF(E14=\"F\",\"G\",IF(E14=\"G\",\"F\",36-E14)))","v":18},null,null,"Pts","+/-",null,null,null,null,null,"APPOIGNY 1",null,"",null,null,0,""]
[null,null,{"$f":"$B$6","v":"APPOIGNY 1"},{"$f":"$B$8","v":"AVALLON 1"},16,{"$f":"IF(E15=\"\",\"\",IF(E15=\"F\",\"G\",IF(E15=\"G\",\"F\",36-E15)))","v":20},1,"RAVIERES 1",9,56,null,null,null,null,null,"APPOIGNY 1",null,"",{"$f":"SUM(R9:R15)","v":6},{"$f":"SUM(V9:V15)","v":4},0,""]
[null,null,"  Match 4 : au 1er nommé le Mardi 07 Mai à 14h30",null,null,null,2,"AVALLON 1",8,24,null,null,null,null,null,"AVALLON 1",28,3,null,null,28,20]
[null,null,{"$f":"$B$5","v":"STADE AUXERRE 2"},{"$f":"$B$2","v":"RAVIERES 1"},null,{"$f":"IF(E17=\"\",\"\",IF(E17=\"F\",\"G\",IF(E17=\"G\",\"F\",36-E17)))","v":""},3,"VAUX 1",7,16,null,null,null,null,null,"AVALLON 1",18,2,null,null,18,0]
[null,null,{"$f":"$B$4","v":"VAUX 1"},{"$f":"$B$6","v":"APPOIGNY 1"},null,{"$f":"IF(E18=\"\",\"\",IF(E18=\"F\",\"G\",IF(E18=\"G\",\"F\",36-E18)))","v":""},4,"APPOIGNY 1",6,4,null,null,null,null,null,"AVALLON 1",20,3,null,null,20,4]
[null,null,{"$f":"$B$3","v":"ANCY LE FRANC 1"},{"$f":"$B$7","v":"CHARBUY 1"},null,{"$f":"IF(E19=\"\",\"\",IF(E19=\"F\",\"G\",IF(E19=\"G\",\"F\",36-E19)))","v":""},5,"STADE AUXERRE 2",5,-8,null,null,null,null,null,"AVALLON 1",null,"",null,null,0,""]
[null,null,{"$f":"$B$8","v":"AVALLON 1"},{"$f":"$B$1","v":"USC SENS 2"},null,{"$f":"IF(E20=\"\",\"\",IF(E20=\"F\",\"G\",IF(E20=\"G\",\"F\",36-E20)))","v":""},6,"ANCY LE FRANC 1",5,-12,null,null,null,null,null,"AVALLON 1",null,"",null,null,0,""]
[null,null,"  Match 5 : au 1er nommé le Mardi 21 Mai à 14h30",null,null,null,7,"CHARBUY 1",4,-36,null,null,null,null,null,"AVALLON 1",null,"",null,null,0,""]
[null,null,{"$f":"$B$1","v":"USC SENS 2"},{"$f":"$B$3","v":"ANCY LE FRANC 1"},null,{"$f":"IF(E22=\"\",\"\",IF(E22=\"F\",\"G\",IF(E22=\"G\",\"F\",36-E22)))","v":""},8,"USC SENS 2",4,-44,null,null,null,null,null,"AVALLON 1","","",{"$f":"SUM(R16:R22)","v":8},{"$f":"SUM(V16:V22)","v":24},0,""]
[null,null,{"$f":"$B$2","v":"RAVIERES 1"},{"$f":"$B$6","v":"APPOIGNY 1"},null,{"$f":"IF(E23=\"\",\"\",IF(E23=\"F\",\"G\",IF(E23=\"G\",\"F\",36-E23)))","v":""},null,null,null,null,null,null,null,null,null,"CHARBUY 1",8,1,null,null,8,-20]
[null,null,{"$f":"$B$7","v":"CHARBUY 1"},{"$f":"$B$5","v":"STADE AUXERRE 2"},null,{"$f":"IF(E24=\"\",\"\",IF(E24=\"F\",\"G\",IF(E24=\"G\",\"F\",36-E24)))","v":""},null,null,null,null,null,null,null,null,null,"CHARBUY 1",10,1,null,null,10,-16]
[null,null,{"$f":"$B$8","v":"AVALLON 1"},{"$f":"$B$4","v":"VAUX 1"},null,{"$f":"IF(E25=\"\",\"\",IF(E25=\"F\",\"G\",IF(E25=\"G\",\"F\",36-E25)))","v":""},null,null,null,null,null,null,null,null,null,"CHARBUY 1",18,2,null,null,18,0]
[null,null,null,null,null,null,null,null,null,null,null,null,null,null,null,"CHARBUY 1","","",null,null,0,""]
[null,"FÉDÉRATION FRANÇAISE DE PÉTANQUE ET JEU PROVENÇAL",null,null,null,null,null,null,null,null,null,null,null,null,null,"CHARBUY 1",null,"",null,null,0,""]
[null,"AGRÉÉE PAR LE MINISTÈRE DE LA JEUNESSE ET  DES SPORTS ",null,null,null,null,null,null,null,null,null,null,null,null,null,"CHARBUY 1",null,"",null,null,0,""]
[null,"TERRITOIRE DE BOURGOGNE ",null,null,null,null,null,null,null,null,null,null,null,null,null,"CHARBUY 1","","",{"$f":"SUM(R23:R29)","v":4},{"$f":"SUM(V23:V29)","v":-36},0,""]
[null,"Championnat Départemental des Clubs 2024 Vétérans Division 1 Groupe B",null,null,null,null,null,null,null,null,null,null,null,null,null,"RAVIERES 1",32,3,null,null,32,28]
[null,null,null,null,null,null,null,null,null,null,null,null,null,null,null,"RAVIERES 1",26,3,null,null,26,16]
[null,null,null,null,null,null,null,null,null,null,null,null,null,null,null,"RAVIERES 1",24,3,null,null,24,12]
[null,null,null,null,null,null,null,null,null,null,null,null,null,null,null,"RAVIERES 1","","",null,null,0,""]
[null,null,null,null,null,null,null,null,null,null,null,null,null,null,null,"RAVIERES 1",null,{"$f":"IF(Q34=\"\",\"\",IF(Q34=\"F\",0,IF(Q34=18,2,IF(Q34>18,3,1))))","v":""},null,null,{"$f":"IF(Q34=\"G\",19,IF(Q34=\"\",0,Q34))","v":0},{"$f":"IF(Q34=\"\",\"\",IF(U34=36,36,IF(U34=0,-36,IF(U34=19,19,IF(U34=\"f\",-19,U34-(36-U34))))))","v":""}]
[null,null,null,null,null,null,null,null,null,null,null,null,null,null,null,"RAVIERES 1","","",null,null,0,""]
[null,null,null,null,null,null,null,null,null,null,null,null,null,null,null,"RAVIERES 1","","",{"$f":"SUM(R30:R36)","v":9},{"$f":"SUM(V30:V36)","v":56},0,""]
[null,null,null,null,null,null,null,null,null,null,null,null,null,null,null,"STADE AUXERRE 2",18,2,null,null,18,0]
[null,null,null,null,null,null,null,null,null,null,null,null,null,null,null,"STADE AUXERRE 2",18,2,null,null,18,0]
[null,null,null,null,null,null,null,null,null,null,null,null,null,null,null,"STADE AUXERRE 2",14,1,null,null,14,-8]
[null,null,null,null,null,null,null,null,null,null,null,null,null,null,null,"STADE AUXERRE 2",null,"",null,null,0,""]
[null,null,null,null,null,null,null,null,null,null,null,null,null,null,null,"STADE AUXERRE 2","","",null,null,0,""]
[null,null,null,null,null,null,null,null,null,null,null,null,null,null,null,"STADE AUXERRE 2",null,"",null,null,0,""]
[null,null,null,null,null,null,null,null,null,null,null,null,null,null,null,"STADE AUXERRE 2","","",{"$f":"SUM(R37:R43)","v":5},{"$f":"SUM(V37:V43)","v":-8},0,""]
[null,null,null,null,null,null,null,null,null,null,null,null,null,null,null,"USC SENS 2",4,1,null,null,4,-28]
[null,null,null,null,null,null,null,null,null,null,null,null,null,null,null,"USC SENS 2",10,1,null,null,10,-16]
[null,null,null,null,null,null,null,null,null,null,null,null,null,null,null,"USC SENS 2",18,2,null,null,18,0]
[null,null,null,null,null,null,null,null,null,null,null,null,null,null,null,"USC SENS 2","","",null,null,0,""]
[null,null,null,null,null,null,null,null,null,null,null,null,null,null,null,"USC SENS 2",null,"",null,null,0,""]
[null,null,null,null,null,null,null,null,null,null,null,null,null,null,null,"USC SENS 2","","",null,null,0,""]
[null,null,null,null,null,null,null,null,null,null,null,null,null,null,null,"USC SENS 2",null,"",{"$f":"SUM(R44:R50)","v":4},{"$f":"SUM(V44:V50)","v":-44},0,""]
[null,null,null,null,null,null,null,null,null,null,null,null,null,null,null,"VAUX 1",14,1,null,null,14,-8]
[null,null,null,null,null,null,null,null,null,null,null,null,null,null,null,"VAUX 1",26,3,null,null,26,16]
[null,null,null,null,null,null,null,null,null,null,null,null,null,null,null,"VAUX 1",22,3,null,null,22,8]
[null,null,null,null,null,null,null,null,null,null,null,null,null,null,null,"VAUX 1",null,"",null,null,0,""]
[null,null,null,null,null,null,null,null,null,null,null,null,null,null,null,"VAUX 1","","",null,null,0,""]
[null,null,null,null,null,null,null,null,null,null,null,null,null,null,null,"VAUX 1","","",null,null,0,""]
[null,null,null,null,null,null,null,null,null,null,null,null,null,null,null,"VAUX 1",null,"",{"$f":"SUM(R51:R57)","v":7},{"$f":"SUM(V51:V57)","v":16},0,""]
[null,null,null,null,null,null,null,null,null,null,null,null,null,null,null,null,null,null,null,null,null,{"$f":"IF(U58=0,\"\",IF(U58=19,\"\",U58-(36-U58)))","v":""}]
[]
[]
[]
[]
[]
[]
[]
[]
[]
[]
[]
[]
[]
[]
[]
[]
[]
[]
[]
[]
[]
[]
[]
[]
[]
[]
[]
[]
[]
[]
[]
[]
[]
[]
[]
[]
[]
[]
[]
[]
[]
[]
[]
[]
[]
[]
[]
[]
[]
[]
[]
[]
[]
[]
[]
[]
[]
[]
[]
[]
[]
[]
[]
[]
[]
[]
[]
[]
[]
[]
[]
[]
[]
[]
[]
[]
[]
[]
[]
[]
[]
[]
[]
[]
[]
[]
[]
[]
[]
[]
[]
[]
[]
[]
[]
[]
[]
[]
[]
[]
[]
[]
[]
[]
[]
[]
[]
[]
[]
[]
[]
[]
[]
[]
[]
[]
[]
[]
[]
[]
[]
[]
[]
[]
[]
[]
[]
[]
[]
[]
[]
[]
[]
[]
[]
[]
[]
[]
[]
[]
[]
[]
[]
[]
[]
[]
[]
[]
[]
[]
[]
[]
[]
[]
[]
[]
[]
[]
[]
[]
[]
[]
[]
[]
[]
[]
[]
[]
[]
[]
[]
[]
[]
[]
[]
[]
[]
[]
[]
[]
[]
[]
[]
[]
[]
[]
[]
[]
[]
[]
[]
[]
[]
[]
[]
[]
[]
[]
[]
[]
[]
[]
[]
[]
[]
[]
[]
[]
[]
[]
[]
[]
[]
[]
[]
[]
[]
[]
[]
[]
[]
[]
[]
[]
[]
[]
[]
[]
[]
[]
[]
[]
[]
[]
[]
[null,"1) Remplir la liste des Clubs composant le Groupe (Colonne B1 à B14)"]
[]
[null,"2) Le calendrier se fait automatiquement"]
[]
[null,"3) Pour chaque rencontre: mettre uniquemment le score de la premiere équipe (Case Blanche,la rouge sera remplie automatiquement)"]
[]
[null,"4) Le score de l'adversaire se mettra automatiquement"]
[]
[null,"Exemple:"]
[null,"L' équipe 1 Gagne par 32 à 4 : il faut mettre 32 pour le score de L'équipe 1 contre l'équipe 2 (4 sera automatique)"]
[null,null,"Essayez : Tapez 32 ici"]
[]
[null,null,{"$f":"$B$1","v":"USC SENS 2"},{"$f":"$B$2","v":"RAVIERES 1"},null,{"$f":"IF(E306=\"\",\"\",IF(E306=\"F\",\"G\",IF(E306=\"G\",\"F\",36-E306)))","v":""}]
[null,null,{"$f":"$B$3","v":"ANCY LE FRANC 1"},"Equipe 4",null,{"$f":"IF(E307=\"\",\"\",IF(E307=\"F\",\"G\",IF(E307=\"G\",\"F\",36-E307)))","v":""}]
[]
[null,null,"Essayez : Tapez 17 ici"]
[]
[null,"L' équipe 4 Gagne par 19 à 17 : il faut mettre 17 pour le score de L'équipe 3 contre l'équipe 2 (19  sera automatique)"]
[]
[null,"5) Pour le Forfait : Mettre F si Premiere equipe Forfait sinon mettre G"]
[]
[null,"Exemple:"]
[null,"L' équipe 1 est forfait : il faut mettre un F pour le score de L'équipe 1 contre l'équipe 2 (G est automatique)"]
[null,null,"Essayez : Tapez un F ici"]
[]
[null,null,{"$f":"$B$1","v":"USC SENS 2"},{"$f":"$B$2","v":"RAVIERES 1"},null,{"$f":"IF(E319=\"\",\"\",IF(E319=\"F\",\"G\",IF(E319=\"G\",\"F\",36-E319)))","v":""}]
[null,null,{"$f":"$B$3","v":"ANCY LE FRANC 1"},"Equipe 4",null,{"$f":"IF(E320=\"\",\"\",IF(E320=\"F\",\"G\",IF(E320=\"G\",\"F\",36-E320)))","v":""}]
[]
[null,null,"Essayez : Tapez un G ici"]
[null,"L' équipe 4 est forfait : il faut mettre un G pour le score de L'équipe 3 contre l'équipe 4 (F est automatique)"]
[]
[]
[null,"En cas de Forfait : le score attribué est 19 à 0"]
[]
[null,"Ne pas oublier d'appuyer sur le bouton Maj Classement sous le Classement"]

{"sheet":"D2 VET Gr A","index":2,"n_rows":328,"n_cols":22,"rows_kept":328,"cut":false,"hidden":false,"merged":[[0,2,0,5],[0,6,0,9],[5,2,5,5],[5,6,5,9],[10,2,10,5],[10,6,10,9],[28,1,28,10],[29,1,29,10],[12,6,12,9],[13,6,13,7],[15,2,15,5],[20,2,20,5],[26,1,26,10],[27,1,27,10]]}
[1,"AILLANT 1","  Match 1 : au 1er nommé le Mardi 26 Mars à 14h30",null,null,null,"  Match 6 : au 1er nommé le Mardi 28 Mai à 14h30",null,null,null,null,null,null,null,null,null,null,"Pt","TPt","T+/-","+","-"]
[2,"STADE DE SENS 2",{"$f":"$B$1","v":"AILLANT 1"},{"$f":"$B$2","v":"STADE DE SENS 2"},32,{"$f":"IF(E2=\"\",\"\",IF(E2=\"F\",\"G\",IF(E2=\"G\",\"F\",36-E2)))","v":4},{"$f":"$B$1","v":"AILLANT 1"},{"$f":"$B$6","v":"VERON 2"},null,{"$f":"IF(I2=\"\",\"\",IF(I2=\"F\",\"G\",IF(I2=\"G\",\"F\",36-I2)))","v":""},null,null,null,null,null,"AILLANT 1",32,{"$f":"IF(Q2=\"\",\"\",IF(Q2=\"F\",0,IF(Q2=18,2,IF(Q2>18,3,1))))","v":3},null,null,{"$f":"IF(Q2=\"G\",19,IF(Q2=\"\",0,Q2))","v":32},{"$f":"IF(Q2=\"\",\"\",IF(U2=36,36,IF(U2=0,-36,IF(U2=19,19,IF(U2=\"f\",-19,U2-(36-U2))))))","v":28}]
[3,"APPOIGNY 2",{"$f":"$B$3","v":"APPOIGNY 2"},{"$f":"$B$4","v":"SENAN 2"},12,24,{"$f":"$B$3","v":"APPOIGNY 2"},{"$f":"$B$5","v":"ST FLORENTIN 2"},null,"",null,null,null,null,null,"AILLANT 1",28,3,null,null,{"$f":"IF(Q3=\"G\",19,IF(Q3=\"\",0,Q3))","v":28},{"$f":"IF(Q3=\"\",\"\",IF(U3=36,36,IF(U3=0,-36,IF(U3=19,19,IF(U3=\"f\",-19,U3-(36-U3))))))","v":20}]
[4,"SENAN 2",{"$f":"$B$5","v":"ST FLORENTIN 2"},{"$f":"$B$6","v":"VERON 2"},28,8,{"$f":"$B$7","v":"JOIGNY 1"},{"$f":"$B$4","v":"SENAN 2"},null,"",null,null,null,null,null,"AILLANT 1",10,1,null,null,10,-16]
[5,"ST FLORENTIN 2",{"$f":"$B$7","v":"JOIGNY 1"},{"$f":"$B$8","v":"CHARBUY 2"},22,14,{"$f":"$B$8","v":"CHARBUY 2"},{"$f":"$B$2","v":"STADE DE SENS 2"},null,"",null,null,null,null,null,"AILLANT 1",null,"",null,null,0,""]
[6,"VERON 2","  Match 2 : au 1er nommé le Mardi 09 Avril à 14h30",null,null,null,"  Match 7 : au 1er nommé le Mardi 04 Juin à 14h30",null,null,null,null,null,null,null,null,"AILLANT 1",null,"",null,null,0,""]
[7,"JOIGNY 1",{"$f":"$B$4","v":"SENAN 2"},{"$f":"$B$1","v":"AILLANT 1"},8,{"$f":"IF(E7=\"\",\"\",IF(E7=\"F\",\"G\",IF(E7=\"G\",\"F\",36-E7)))","v":28},{"$f":"$B$6","v":"VERON 2"},{"$f":"$B$7","v":"JOIGNY 1"},null,{"$f":"IF(I7=\"\",\"\",IF(I7=\"F\",\"G\",IF(I7=\"G\",\"F\",36-I7)))","v":""},null,null,null,null,null,"AILLANT 1",null,"",null,null,0,""]
[8,"CHARBUY 2",{"$f":"$B$6","v":"VERON 2"},{"$f":"$B$3","v":"APPOIGNY 2"},24,12,{"$f":"$B$4","v":"SENAN 2"},{"$f":"$B$2","v":"STADE DE SENS 2"},null,"",null,null,null,null,null,"AILLANT 1","","",{"$f":"SUM(R2:R8)","v":7},{"$f":"SUM(V2:V8)","v":32},0,""]
[null,null,{"$f":"$B$2","v":"STADE DE SENS 2"},{"$f":"$B$7","v":"JOIGNY 1"},6,30,{"$f":"$B$5","v":"ST FLORENTIN 2"},{"$f":"$B$1","v":"AILLANT 1"},null,"",null,null,null,null,null,"APPOIGNY 2",12,1,null,null,12,-12]
[null,null,{"$f":"$B$8","v":"CHARBUY 2"},{"$f":"$B$5","v":"ST FLORENTIN 2"},24,12,{"$f":"$B$3","v":"APPOIGNY 2"},{"$f":"$B$8","v":"CHARBUY 2"},null,"",null,null,null,null,null,"APPOIGNY 2",12,1,null,null,12,-12]
["Rappel:",null,"  Match 3 : au 1er nommé le Mardi 23 Avril à 14h30",null,null,null,null,null,null,null,null,null,null,null,null,"APPOIGNY 2",30,3,null,null,30,24]
["Seules les Cases Blanches",null,{"$f":"$B$4","v":"SENAN 2"},{"$f":"$B$5","v":"ST FLORENTIN 2"},12,{"$f":"IF(E12=\"\",\"\",IF(E12=\"F\",\"G\",IF(E12=\"G\",\"F\",36-E12)))","v":24},null,null,null,null,null,null,null,null,null,"APPOIGNY 2",null,"",null,null,0,""]
["sont à remplir",0,{"$f":"$B$2","v":"STADE DE SENS 2"},{"$f":"$B$3","v":"APPOIGNY 2"},6,30,"Classement",null,null,null,null,null,null,null,null,"APPOIGNY 2","","",null,null,0,""]
[null,null,{"$f":"$B$7","v":"JOIGNY 1"},{"$f":"$B$1","v":"AILLANT 1"},26,10,null,null,"Pts","+/-",null,null,null,null,null,"APPOIGNY 2",null,"",null,null,0,""]
[null,null,{"$f":"$B$6","v":"VERON 2"},{"$f":"$B$8","v":"CHARBUY 2"},12,24,1,"JOIGNY 1",9,48,null,null,null,null,null,"APPOIGNY 2",null,"",{"$f":"SUM(R9:R15)","v":5},{"$f":"SUM(V9:V15)","v":0},0,""]
[null,null,"  Match 4 : au 1er nommé le Mardi 07 Mai à 14h30",null,null,null,2,"AILLANT 1",7,32,null,null,null,null,null,"CHARBUY 2",14,1,null,null,14,-8]
[null,null,{"$f":"$B$5","v":"ST FLORENTIN 2"},{"$f":"$B$2","v":"STADE DE SENS 2"},null,{"$f":"IF(E17=\"\",\"\",IF(E17=\"F\",\"G\",IF(E17=\"G\",\"F\",36-E17)))","v":""},3,"ST FLORENTIN 2",7,20,null,null,null,null,null,"CHARBUY 2",24,3,null,null,24,12]
[null,null,{"$f":"$B$6","v":"VERON 2"},{"$f":"$B$4","v":"SENAN 2"},null,{"$f":"IF(E18=\"\",\"\",IF(E18=\"F\",\"G\",IF(E18=\"G\",\"F\",36-E18)))","v":""},4,"CHARBUY 2",7,16,null,null,null,null,null,"CHARBUY 2",24,3,null,null,24,12]
[null,null,{"$f":"$B$3","v":"APPOIGNY 2"},{"$f":"$B$7","v":"JOIGNY 1"},null,{"$f":"IF(E19=\"\",\"\",IF(E19=\"F\",\"G\",IF(E19=\"G\",\"F\",36-E19)))","v":""},5,"APPOIGNY 2",5,0,null,null,null,null,null,"CHARBUY 2","","",null,null,0,""]
[null,null,{"$f":"$B$1","v":"AILLANT 1"},{"$f":"$B$8","v":"CHARBUY 2"},null,{"$f":"IF(E20=\"\",\"\",IF(E20=\"F\",\"G\",IF(E20=\"G\",\"F\",36-E20)))","v":""},6,"SENAN 2",5,-20,null,null,null,null,null,"CHARBUY 2",null,"",null,null,0,""]
[null,null,"  Match 5 : au 1er nommé le Mardi 21 Mai à 14h30",null,null,null,7,"VERON 2",5,-20,null,null,null,null,null,"CHARBUY 2",null,"",null,null,0,""]
[null,null,{"$f":"$B$1","v":"AILLANT 1"},{"$f":"$B$3","v":"APPOIGNY 2"},null,{"$f":"IF(E22=\"\",\"\",IF(E22=\"F\",\"G\",IF(E22=\"G\",\"F\",36-E22)))","v":""},8,"STADE DE SENS 2",3,-76,null,null,null,null,null,"CHARBUY 2","","",{"$f":"SUM(R16:R22)","v":7},{"$f":"SUM(V16:V22)","v":16},0,""]
[null,null,{"$f":"$B$2","v":"STADE DE SENS 2"},{"$f":"$B$6","v":"VERON 2"},null,{"$f":"IF(E23=\"\",\"\",IF(E23=\"F\",\"G\",IF(E23=\"G\",\"F\",36-E23)))","v":""},null,null,null,null,null,null,null,null,null,"JOIGNY 1",22,3,null,null,22,8]
[null,null,{"$f":"$B$7","v":"JOIGNY 1"},{"$f":"$B$5","v":"ST FLORENTIN 2"},null,{"$f":"IF(E24=\"\",\"\",IF(E24=\"F\",\"G\",IF(E24=\"G\",\"F\",36-E24)))","v":""},null,null,null,null,null,null,null,null,null,"JOIGNY 1",30,3,null,null,30,24]
[null,null,{"$f":"$B$8","v":"CHARBUY 2"},{"$f":"$B$4","v":"SENAN 2"},null,{"$f":"IF(E25=\"\",\"\",IF(E25=\"F\",\"G\",IF(E25=\"G\",\"F\",36-E25)))","v":""},null,null,null,null,null,null,null,null,null,"JOIGNY 1",26,3,null,null,26,16]
[null,null,null,null,null,null,null,null,null,null,null,null,null,null,null,"JOIGNY 1","","",null,null,0,""]
[null,"FÉDÉRATION FRANÇAISE DE PÉTANQUE ET JEU PROVENÇAL",null,null,null,null,null,null,null,null,null,null,null,null,null,"JOIGNY 1",null,"",null,null,0,""]
[null,"AGRÉÉE PAR LE MINISTÈRE DE LA JEUNESSE ET  DES SPORTS ",null,null,null,null,null,null,null,null,null,null,null,null,null,"JOIGNY 1",null,"",null,null,0,""]
[null,"TERRITOIRE DE BOURGOGNE ",null,null,null,null,null,null,null,null,null,null,null,null,null,"JOIGNY 1","","",{"$f":"SUM(R23:R29)","v":9},{"$f":"SUM(V23:V29)","v":48},0,""]
[null,"Championnat Départemental des Clubs 2024 Vétérans Division 2 Groupe A",null,null,null,null,null,null,null,null,null,null,null,null,null,"SENAN 2",24,3,null,null,24,12]
[null,null,null,null,null,null,null,null,null,null,null,null,null,null,null,"SENAN 2",8,1,null,null,8,-20]
[null,null,null,null,null,null,null,null,null,null,null,null,null,null,null,"SENAN 2",12,1,null,null,12,-12]
[null,null,null,null,null,null,null,null,null,null,null,null,null,null,null,"SENAN 2","","",null,null,0,""]
[null,null,null,null,null,null,null,null,null,null,null,null,null,null,null,"SENAN 2","","",null,null,0,""]
[null,null,null,null,null,null,null,null,null,null,null,null,null,null,null,"SENAN 2","","",null,null,0,""]
[null,null,null,null,null,null,null,null,null,null,null,null,null,null,null,"SENAN 2",null,"",{"$f":"SUM(R30:R36)","v":5},{"$f":"SUM(V30:V36)","v":-20},0,""]
[null,null,null,null,null,null,null,null,null,null,null,null,null,null,null,"ST FLORENTIN 2",28,3,null,null,28,20]
[null,null,null,null,null,null,null,null,null,null,null,null,null,null,null,"ST FLORENTIN 2",12,1,null,null,12,-12]
[null,null,null,null,null,null,null,null,null,null,null,null,null,null,null,"ST FLORENTIN 2",24,3,null,null,24,12]
[null,null,null,null,null,null,null,null,null,null,null,null,null,null,null,"ST FLORENTIN 2",null,"",null,null,0,""]
[null,null,null,null,null,null,null,null,null,null,null,null,null,null,null,"ST FLORENTIN 2","","",null,null,0,""]
[null,null,null,null,null,null,null,null,null,null,null,null,null,null,null,"ST FLORENTIN 2","","",null,null,0,""]
[null,null,null,null,null,null,null,null,null,null,null,null,null,null,null,"ST FLORENTIN 2",null,"",{"$f":"SUM(R37:R43)","v":7},{"$f":"SUM(V37:V43)","v":20},0,""]
[null,null,null,null,null,null,null,null,null,null,null,null,null,null,null,"STADE DE SENS 2",4,1,null,null,4,-28]
[null,null,null,null,null,null,null,null,null,null,null,null,null,null,null,"STADE DE SENS 2",6,1,null,null,6,-24]
[null,null,null,null,null,null,null,null,null,null,null,null,null,null,null,"STADE DE SENS 2",6,1,null,null,6,-24]
[null,null,null,null,null,null,null,null,null,null,null,null,null,null,null,"STADE DE SENS 2","","",null,null,0,""]
[null,null,null,null,null,null,null,null,null,null,null,null,null,null,null,"STADE DE SENS 2",null,"",null,null,0,""]
[null,null,null,null,null,null,null,null,null,null,null,null,null,null,null,"STADE DE SENS 2","","",null,null,0,""]
[null,null,null,null,null,null,null,null,null,null,null,null,null,null,null,"STADE DE SENS 2","","",{"$f":"SUM(R44:R50)","v":3},{"$f":"SUM(V44:V50)","v":-76},0,""]
[null,null,null,null,null,null,null,null,null,null,null,null,null,null,null,"VERON 2",8,1,null,null,8,-20]
[null,null,null,null,null,null,null,null,null,null,null,null,null,null,null,"VERON 2",24,3,null,null,24,12]
[null,null,null,null,null,null,null,null,null,null,null,null,null,null,null,"VERON 2",12,1,null,null,12,-12]
[null,null,null,null,null,null,null,null,null,null,null,null,null,null,null,"VERON 2",null,"",null,null,0,""]
[null,null,null,null,null,null,null,null,null,null,null,null,null,null,null,"VERON 2","","",null,null,0,""]
[null,null,null,null,null,null,null,null,null,null,null,null,null,null,null,"VERON 2","","",null,null,0,""]
[null,null,null,null,null,null,null,null,null,null,null,null,null,null,null,"VERON 2",null,"",{"$f":"SUM(R51:R57)","v":5},{"$f":"SUM(V51:V57)","v":-20},0,""]
[null,null,null,null,null,null,null,null,null,null,null,null,null,null,null,null,null,null,null,null,null,{"$f":"IF(U58=0,\"\",IF(U58=19,\"\",U58-(36-U58)))","v":""}]
[]
[]
[]
[]
[]
[]
[]
[]
[]
[]
[]
[]
[]
[]
[]
[]
[]
[]
[]
[]
[]
[]
[]
[]
[]
[]
[]
[]
[]
[]
[]
[]
[]
[]
[]
[]
[]
[]
[]
[]
[]
[]
[]
[]
[]
[]
[]
[]
[]
[]
[]
[]
[]
[]
[]
[]
[]
[]
[]
[]
[]
[]
[]
[]
[]
[]
[]
[]
[]
[]
[]
[]
[]
[]
[]
[]
[]
[]
[]
[]
[]
[]
[]
[]
[]
[]
[]
[]
[]
[]
[]
[]
[]
[]
[]
[]
[]
[]
[]
[]
[]
[]
[]
[]
[]
[]
[]
[]
[]
[]
[]
[]
[]
[]
[]
[]
[]
[]
[]
[]
[]
[]
[]
[]
[]
[]
[]
[]
[]
[]
[]
[]
[]
[]
[]
[]
[]
[]
[]
[]
[]
[]
[]
[]
[]
[]
[]
[]
[]
[]
[]
[]
[]
[]
[]
[]
[]
[]
[]
[]
[]
[]
[]
[]
[]
[]
[]
[]
[]
[]
[]
[]
[]
[]
[]
[]
[]
[]
[]
[]
[]
[]
[]
[]
[]
[]
[]
[]
[]
[]
[]
[]
[]
[]
[]
[]
[]
[]
[]
[]
[]
[]
[]
[]
[]
[]
[]
[]
[]
[]
[]
[]
[]
[]
[]
[]
[]
[]
[]
[]
[]
[]
[]
[]
[]
[]
[]
[]
[]
[]
[]
[]
[]
[]
[]
[null,"1) Remplir la liste des Clubs composant le Groupe (Colonne B1 à B14)"]
[]
[null,"2) Le calendrier se fait automatiquement"]
[]
[null,"3) Pour chaque rencontre: mettre uniquemment le score de la premiere équipe (Case Blanche,la rouge sera remplie automatiquement)"]
[]
[null,"4) Le score de l'adversaire se mettra automatiquement"]
[]
[null,"Exemple:"]
[null,"L' équipe 1 Gagne par 32 à 4 : il faut mettre 32 pour le score de L'équipe 1 contre l'équipe 2 (4 sera automatique)"]
[null,null,"Essayez : Tapez 32 ici"]
[]
[null,null,{"$f":"$B$1","v":"AILLANT 1"},{"$f":"$B$2","v":"STADE DE SENS 2"},null,{"$f":"IF(E306=\"\",\"\",IF(E306=\"F\",\"G\",IF(E306=\"G\",\"F\",36-E306)))","v":""}]
[null,null,{"$f":"$B$3","v":"APPOIGNY 2"},"Equipe 4",null,{"$f":"IF(E307=\"\",\"\",IF(E307=\"F\",\"G\",IF(E307=\"G\",\"F\",36-E307)))","v":""}]
[]
[null,null,"Essayez : Tapez 17 ici"]
[]
[null,"L' équipe 4 Gagne par 19 à 17 : il faut mettre 17 pour le score de L'équipe 3 contre l'équipe 2 (19  sera automatique)"]
[]
[null,"5) Pour le Forfait : Mettre F si Premiere equipe Forfait sinon mettre G"]
[]
[null,"Exemple:"]
[null,"L' équipe 1 est forfait : il faut mettre un F pour le score de L'équipe 1 contre l'équipe 2 (G est automatique)"]
[null,null,"Essayez : Tapez un F ici"]
[]
[null,null,{"$f":"$B$1","v":"AILLANT 1"},{"$f":"$B$2","v":"STADE DE SENS 2"},null,{"$f":"IF(E319=\"\",\"\",IF(E319=\"F\",\"G\",IF(E319=\"G\",\"F\",36-E319)))","v":""}]
[null,null,{"$f":"$B$3","v":"APPOIGNY 2"},"Equipe 4",null,{"$f":"IF(E320=\"\",\"\",IF(E320=\"F\",\"G\",IF(E320=\"G\",\"F\",36-E320)))","v":""}]
[]
[null,null,"Essayez : Tapez un G ici"]
[null,"L' équipe 4 est forfait : il faut mettre un G pour le score de L'équipe 3 contre l'équipe 4 (F est automatique)"]
[]
[]
[null,"En cas de Forfait : le score attribué est 19 à 0"]
[]
[null,"Ne pas oublier d'appuyer sur le bouton Maj Classement sous le Classement"]

{"sheet":"D2 VET Gr B","index":3,"n_rows":328,"n_cols":22,"rows_kept":328,"cut":false,"hidden":false,"merged":[[0,2,0,5],[0,6,0,9],[5,2,5,5],[5,6,5,9],[10,2,10,5],[10,6,10,9],[28,1,28,10],[29,1,29,10],[12,6,12,9],[13,6,13,7],[15,2,15,5],[20,2,20,5],[26,1,26,10],[27,1,27,10]]}
[1,"MONETEAU 2","  Match 1 : au 1er nommé le Mardi 26 Mars à 14h30",null,null,null,"  Match 6 : au 1er nommé le Mardi 28 Mai à 14h30",null,null,null,null,null,null,null,null,null,null,"Pt","TPt","T+/-","+","-"]
[2,"CHATEL CENSOIR 1",{"$f":"$B$1","v":"MONETEAU 2"},{"$f":"$B$2","v":"CHATEL CENSOIR 1"},30,{"$f":"IF(E2=\"\",\"\",IF(E2=\"F\",\"G\",IF(E2=\"G\",\"F\",36-E2)))","v":6},{"$f":"$B$1","v":"MONETEAU 2"},{"$f":"$B$6","v":"AVALLON 2"},null,{"$f":"IF(I2=\"\",\"\",IF(I2=\"F\",\"G\",IF(I2=\"G\",\"F\",36-I2)))","v":""},null,null,null,null,null,"ANCY LE FRANC 2",8,{"$f":"IF(Q2=\"\",\"\",IF(Q2=\"F\",0,IF(Q2=18,2,IF(Q2>18,3,1))))","v":1},null,null,{"$f":"IF(Q2=\"G\",19,IF(Q2=\"\",0,Q2))","v":8},{"$f":"IF(Q2=\"\",\"\",IF(U2=36,36,IF(U2=0,-36,IF(U2=19,19,IF(U2=\"f\",-19,U2-(36-U2))))))","v":-20}]
[3,"VAUX 2",{"$f":"$B$3","v":"VAUX 2"},{"$f":"$B$4","v":"BLENEAU 1"},32,4,{"$f":"$B$3","v":"VAUX 2"},{"$f":"$B$5","v":"ANCY LE FRANC 2"},null,"",null,null,null,null,null,"ANCY LE FRANC 2",4,1,null,null,{"$f":"IF(Q3=\"G\",19,IF(Q3=\"\",0,Q3))","v":4},{"$f":"IF(Q3=\"\",\"\",IF(U3=36,36,IF(U3=0,-36,IF(U3=19,19,IF(U3=\"f\",-19,U3-(36-U3))))))","v":-28}]
[4,"BLENEAU 1",{"$f":"$B$5","v":"ANCY LE FRANC 2"},{"$f":"$B$6","v":"AVALLON 2"},8,28,{"$f":"$B$7","v":"CHARBUY 3"},{"$f":"$B$4","v":"BLENEAU 1"},null,"",null,null,null,null,null,"ANCY LE FRANC 2",16,1,null,null,16,-4]
[5,"ANCY LE FRANC 2",{"$f":"$B$7","v":"CHARBUY 3"},{"$f":"$B$8","v":"HERY 1"},8,28,{"$f":"$B$8","v":"HERY 1"},{"$f":"$B$2","v":"CHATEL CENSOIR 1"},null,"",null,null,null,null,null,"ANCY LE FRANC 2",null,"",null,null,0,""]
[6,"AVALLON 2","  Match 2 : au 1er nommé le Mardi 09 Avril à 14h30",null,null,null,"  Match 7 : au 1er nommé le Mardi 04 Juin à 14h30",null,null,null,null,null,null,null,null,"ANCY LE FRANC 2","","",null,null,0,""]
[7,"CHARBUY 3",{"$f":"$B$4","v":"BLENEAU 1"},{"$f":"$B$1","v":"MONETEAU 2"},14,{"$f":"IF(E7=\"\",\"\",IF(E7=\"F\",\"G\",IF(E7=\"G\",\"F\",36-E7)))","v":22},{"$f":"$B$6","v":"AVALLON 2"},{"$f":"$B$7","v":"CHARBUY 3"},null,{"$f":"IF(I7=\"\",\"\",IF(I7=\"F\",\"G\",IF(I7=\"G\",\"F\",36-I7)))","v":""},null,null,null,null,null,"ANCY LE FRANC 2","","",null,null,0,""]
[8,"HERY 1",{"$f":"$B$6","v":"AVALLON 2"},{"$f":"$B$3","v":"VAUX 2"},8,28,{"$f":"$B$4","v":"BLENEAU 1"},{"$f":"$B$2","v":"CHATEL CENSOIR 1"},null,"",null,null,null,null,null,"ANCY LE FRANC 2",null,"",{"$f":"SUM(R2:R8)","v":3},{"$f":"SUM(V2:V8)","v":-52},0,""]
[null,null,{"$f":"$B$2","v":"CHATEL CENSOIR 1"},{"$f":"$B$7","v":"CHARBUY 3"},22,14,{"$f":"$B$5","v":"ANCY LE FRANC 2"},{"$f":"$B$1","v":"MONETEAU 2"},null,"",null,null,null,null,null,"AVALLON 2",28,3,null,null,28,20]
[null,null,{"$f":"$B$8","v":"HERY 1"},{"$f":"$B$5","v":"ANCY LE FRANC 2"},32,4,{"$f":"$B$3","v":"VAUX 2"},{"$f":"$B$8","v":"HERY 1"},null,"",null,null,null,null,null,"AVALLON 2",8,1,null,null,8,-20]
["Rappel:",null,"  Match 3 : au 1er nommé le Mardi 23 Avril à 14h30",null,null,null,null,null,null,null,null,null,null,null,null,"AVALLON 2",18,2,null,null,18,0]
["Seules les Cases Blanches",null,{"$f":"$B$4","v":"BLENEAU 1"},{"$f":"$B$5","v":"ANCY LE FRANC 2"},20,{"$f":"IF(E12=\"\",\"\",IF(E12=\"F\",\"G\",IF(E12=\"G\",\"F\",36-E12)))","v":16},null,null,null,null,null,null,null,null,null,"AVALLON 2",null,"",null,null,0,""]
["sont à remplir",null,{"$f":"$B$2","v":"CHATEL CENSOIR 1"},{"$f":"$B$3","v":"VAUX 2"},6,30,"Classement",null,null,null,null,null,null,null,null,"AVALLON 2","","",null,null,0,""]
[null,null,{"$f":"$B$7","v":"CHARBUY 3"},{"$f":"$B$1","v":"MONETEAU 2"},10,26,null,null,"Pts","+/-",null,null,null,null,null,"AVALLON 2","","",null,null,0,""]
[null,null,{"$f":"$B$6","v":"AVALLON 2"},{"$f":"$B$8","v":"HERY 1"},18,18,1,"VAUX 2",9,72,null,null,null,null,null,"AVALLON 2",null,"",{"$f":"SUM(R9:R15)","v":6},{"$f":"SUM(V9:V15)","v":0},0,""]
[null,null,"  Match 4 : au 1er nommé le Mardi 07 Mai à 14h30",null,null,null,2,"MONETEAU 2",9,48,null,null,null,null,null,"BLENEAU 1",4,1,null,null,4,-28]
[null,null,{"$f":"$B$5","v":"ANCY LE FRANC 2"},{"$f":"$B$2","v":"CHATEL CENSOIR 1"},null,{"$f":"IF(E17=\"\",\"\",IF(E17=\"F\",\"G\",IF(E17=\"G\",\"F\",36-E17)))","v":""},3,"HERY 1",8,48,null,null,null,null,null,"BLENEAU 1",14,1,null,null,14,-8]
[null,null,{"$f":"$B$6","v":"AVALLON 2"},{"$f":"$B$4","v":"BLENEAU 1"},null,{"$f":"IF(E18=\"\",\"\",IF(E18=\"F\",\"G\",IF(E18=\"G\",\"F\",36-E18)))","v":""},4,"AVALLON 2",6,0,null,null,null,null,null,"BLENEAU 1",20,3,null,null,20,4]
[null,null,{"$f":"$B$3","v":"VAUX 2"},{"$f":"$B$7","v":"CHARBUY 3"},null,{"$f":"IF(E19=\"\",\"\",IF(E19=\"F\",\"G\",IF(E19=\"G\",\"F\",36-E19)))","v":""},5,"BLENEAU 1",5,-32,null,null,null,null,null,"BLENEAU 1","","",null,null,0,""]
[null,null,{"$f":"$B$1","v":"MONETEAU 2"},{"$f":"$B$8","v":"HERY 1"},null,{"$f":"IF(E20=\"\",\"\",IF(E20=\"F\",\"G\",IF(E20=\"G\",\"F\",36-E20)))","v":""},6,"CHATEL CENSOIR 1",5,-40,null,null,null,null,null,"BLENEAU 1","","",null,null,0,""]
[null,null,"  Match 5 : au 1er nommé le Mardi 21 Mai à 14h30",null,null,null,7,"CHARBUY 3",3,-44,null,null,null,null,null,"BLENEAU 1","","",null,null,0,""]
[null,null,{"$f":"$B$1","v":"MONETEAU 2"},{"$f":"$B$3","v":"VAUX 2"},null,{"$f":"IF(E22=\"\",\"\",IF(E22=\"F\",\"G\",IF(E22=\"G\",\"F\",36-E22)))","v":""},8,"ANCY LE FRANC 2",3,-52,null,null,null,null,null,"BLENEAU 1",null,"",{"$f":"SUM(R16:R22)","v":5},{"$f":"SUM(V16:V22)","v":-32},0,""]
[null,null,{"$f":"$B$2","v":"CHATEL CENSOIR 1"},{"$f":"$B$6","v":"AVALLON 2"},null,{"$f":"IF(E23=\"\",\"\",IF(E23=\"F\",\"G\",IF(E23=\"G\",\"F\",36-E23)))","v":""},null,null,null,null,null,null,null,null,null,"CHARBUY 3",8,1,null,null,8,-20]
[null,null,{"$f":"$B$7","v":"CHARBUY 3"},{"$f":"$B$5","v":"ANCY LE FRANC 2"},null,{"$f":"IF(E24=\"\",\"\",IF(E24=\"F\",\"G\",IF(E24=\"G\",\"F\",36-E24)))","v":""},null,null,null,null,null,null,null,null,null,"CHARBUY 3",14,1,null,null,14,-8]
[null,null,{"$f":"$B$8","v":"HERY 1"},{"$f":"$B$4","v":"BLENEAU 1"},null,{"$f":"IF(E25=\"\",\"\",IF(E25=\"F\",\"G\",IF(E25=\"G\",\"F\",36-E25)))","v":""},null,null,null,null,null,null,null,null,null,"CHARBUY 3",10,1,null,null,10,-16]
[null,null,null,null,null,null,null,null,null,null,null,null,null,null,null,"CHARBUY 3","","",null,null,0,""]
[null,"FÉDÉRATION FRANÇAISE DE PÉTANQUE ET JEU PROVENÇAL",null,null,null,null,null,null,null,null,null,null,null,null,null,"CHARBUY 3",null,"",null,null,0,""]
[null,"AGRÉÉE PAR LE MINISTÈRE DE LA JEUNESSE ET  DES SPORTS ",null,null,null,null,null,null,null,null,null,null,null,null,null,"CHARBUY 3",null,"",null,null,0,""]
[null,"TERRITOIRE DE BOURGOGNE ",null,null,null,null,null,null,null,null,null,null,null,null,null,"CHARBUY 3","","",{"$f":"SUM(R23:R29)","v":3},{"$f":"SUM(V23:V29)","v":-44},0,""]
[null,"Championnat Départemental des Clubs 2024 Vétérans Division 2 Groupe B",null,null,null,null,null,null,null,null,null,null,null,null,null,"CHATEL CENSOIR 1",6,1,null,null,6,-24]
[null,null,null,null,null,null,null,null,null,null,null,null,null,null,null,"CHATEL CENSOIR 1",22,3,null,null,22,8]
[null,null,null,null,null,null,null,null,null,null,null,null,null,null,null,"CHATEL CENSOIR 1",6,1,null,null,6,-24]
[null,null,null,null,null,null,null,null,null,null,null,null,null,null,null,"CHATEL CENSOIR 1","","",null,null,0,""]
[null,null,null,null,null,null,null,null,null,null,null,null,null,null,null,"CHATEL CENSOIR 1",null,"",null,null,0,""]
[null,null,null,null,null,null,null,null,null,null,null,null,null,null,null,"CHATEL CENSOIR 1","","",null,null,0,""]
[null,null,null,null,null,null,null,null,null,null,null,null,null,null,null,"CHATEL CENSOIR 1","","",{"$f":"SUM(R30:R36)","v":5},{"$f":"SUM(V30:V36)","v":-40},0,""]
[null,null,null,null,null,null,null,null,null,null,null,null,null,null,null,"HERY 1",28,3,null,null,28,20]
[null,null,null,null,null,null,null,null,null,null,null,null,null,null,null,"HERY 1",32,3,null,null,32,28]
[null,null,null,null,null,null,null,null,null,null,null,null,null,null,null,"HERY 1",18,2,null,null,18,0]
[null,null,null,null,null,null,null,null,null,null,null,null,null,null,null,"HERY 1","","",null,null,0,""]
[null,null,null,null,null,null,null,null,null,null,null,null,null,null,null,"HERY 1",null,"",null,null,0,""]
[null,null,null,null,null,null,null,null,null,null,null,null,null,null,null,"HERY 1",null,"",null,null,0,""]
[null,null,null,null,null,null,null,null,null,null,null,null,null,null,null,"HERY 1","","",{"$f":"SUM(R37:R43)","v":8},{"$f":"SUM(V37:V43)","v":48},0,""]
[null,null,null,null,null,null,null,null,null,null,null,null,null,null,null,"MONETEAU 2",30,3,null,null,30,24]
[null,null,null,null,null,null,null,null,null,null,null,null,null,null,null,"MONETEAU 2",22,3,null,null,22,8]
[null,null,null,null,null,null,null,null,null,null,null,null,null,null,null,"MONETEAU 2",26,3,null,null,26,16]
[null,null,null,null,null,null,null,null,null,null,null,null,null,null,null,"MONETEAU 2",null,"",null,null,0,""]
[null,null,null,null,null,null,null,null,null,null,null,null,null,null,null,"MONETEAU 2",null,"",null,null,0,""]
[null,null,null,null,null,null,null,null,null,null,null,null,null,null,null,"MONETEAU 2",null,"",null,null,0,""]
[null,null,null,null,null,null,null,null,null,null,null,null,null,null,null,"MONETEAU 2","","",{"$f":"SUM(R44:R50)","v":9},{"$f":"SUM(V44:V50)","v":48},0,""]
[null,null,null,null,null,null,null,null,null,null,null,null,null,null,null,"VAUX 2",32,3,null,null,32,28]
[null,null,null,null,null,null,null,null,null,null,null,null,null,null,null,"VAUX 2",28,3,null,null,28,20]
[null,null,null,null,null,null,null,null,null,null,null,null,null,null,null,"VAUX 2",30,3,null,null,30,24]
[null,null,null,null,null,null,null,null,null,null,null,null,null,null,null,"VAUX 2",null,"",null,null,0,""]
[null,null,null,null,null,null,null,null,null,null,null,null,null,null,null,"VAUX 2","","",null,null,0,""]
[null,null,null,null,null,null,null,null,null,null,null,null,null,null,null,"VAUX 2",null,"",null,null,0,""]
[null,null,null,null,null,null,null,null,null,null,null,null,null,null,null,"VAUX 2",null,"",{"$f":"SUM(R51:R57)","v":9},{"$f":"SUM(V51:V57)","v":72},0,""]
[null,null,null,null,null,null,null,null,null,null,null,null,null,null,null,null,null,null,null,null,null,{"$f":"IF(U58=0,\"\",IF(U58=19,\"\",U58-(36-U58)))","v":""}]
[]
[]
[]
[]
[]
[]
[]
[]
[]
[]
[]
[]
[]
[]
[]
[]
[]
[]
[]
[]
[]
[]
[]
[]
[]
[]
[]
[]
[]
[]
[]
[]
[]
[]
[]
[]
[]
[]
[]
[]
[]
[]
[]
[]
[]
[]
[]
[]
[]
[]
[]
[]
[]
[]
[]
[]
[]
[]
[]
[]
[]
[]
[]
[]
[]
[]
[]
[]
[]
[]
[]
[]
[]
[]
[]
[]
[]
[]
[]
[]
[]
[]
[]
[]
[]
[]
[]
[]
[]
[]
[]
[]
[]
[]
[]
[]
[]
[]
[]
[]
[]
[]
[]
[]
[]
[]
[]
[]
[]
[]
[]
[]
[]
[]
[]
[]
[]
[]
[]
[]
[]
[]
[]
[]
[]
[]
[]
[]
[]
[]
[]
[]
[]
[]
[]
[]
[]
[]
[]
[]
[]
[]
[]
[]
[]
[]
[]
[]
[]
[]
[]
[]
[]
[]
[]
[]
[]
[]
[]
[]
[]
[]
[]
[]
[]
[]
[]
[]
[]
[]
[]
[]
[]
[]
[]
[]
[]
[]
[]
[]
[]
[]
[]
[]
[]
[]
[]
[]
[]
[]
[]
[]
[]
[]
[]
[]
[]
[]
[]
[]
[]
[]
[]
[]
[]
[]
[]
[]
[]
[]
[]
[]
[]
[]
[]
[]
[]
[]
[]
[]
[]
[]
[]
[]
[]
[]
[]
[]
[]
[]
[]
[]
[]
[]
[]
[null,"1) Remplir la liste des Clubs composant le Groupe (Colonne B1 à B14)"]
[]
[null,"2) Le calendrier se fait automatiquement"]
[]
[null,"3) Pour chaque rencontre: mettre uniquemment le score de la premiere équipe (Case Blanche,la rouge sera remplie automatiquement)"]
[]
[null,"4) Le score de l'adversaire se mettra automatiquement"]
[]
[null,"Exemple:"]
[null,"L' équipe 1 Gagne par 32 à 4 : il faut mettre 32 pour le score de L'équipe 1 contre l'équipe 2 (4 sera automatique)"]
[null,null,"Essayez : Tapez 32 ici"]
[]
[null,null,{"$f":"$B$1","v":"MONETEAU 2"},{"$f":"$B$2","v":"CHATEL CENSOIR 1"},null,{"$f":"IF(E306=\"\",\"\",IF(E306=\"F\",\"G\",IF(E306=\"G\",\"F\",36-E306)))","v":""}]
[null,null,{"$f":"$B$3","v":"VAUX 2"},"Equipe 4",null,{"$f":"IF(E307=\"\",\"\",IF(E307=\"F\",\"G\",IF(E307=\"G\",\"F\",36-E307)))","v":""}]
[]
[null,null,"Essayez : Tapez 17 ici"]
[]
[null,"L' équipe 4 Gagne par 19 à 17 : il faut mettre 17 pour le score de L'équipe 3 contre l'équipe 2 (19  sera automatique)"]
[]
[null,"5) Pour le Forfait : Mettre F si Premiere equipe Forfait sinon mettre G"]
[]
[null,"Exemple:"]
[null,"L' équipe 1 est forfait : il faut mettre un F pour le score de L'équipe 1 contre l'équipe 2 (G est automatique)"]
[null,null,"Essayez : Tapez un F ici"]
[]
[null,null,{"$f":"$B$1","v":"MONETEAU 2"},{"$f":"$B$2","v":"CHATEL CENSOIR 1"},null,{"$f":"IF(E319=\"\",\"\",IF(E319=\"F\",\"G\",IF(E319=\"G\",\"F\",36-E319)))","v":""}]
[null,null,{"$f":"$B$3","v":"VAUX 2"},"Equipe 4",null,{"$f":"IF(E320=\"\",\"\",IF(E320=\"F\",\"G\",IF(E320=\"G\",\"F\",36-E320)))","v":""}]
[]
[null,null,"Essayez : Tapez un G ici"]
[null,"L' équipe 4 est forfait : il faut mettre un G pour le score de L'équipe 3 contre l'équipe 4 (F est automatique)"]
[]
[]
[null,"En cas de Forfait : le score attribué est 19 à 0"]
[]
[null,"Ne pas oublier d'appuyer sur le bouton Maj Classement sous le Classement"]

{"sheet":"D3 Gr Unique","index":4,"n_rows":316,"n_cols":17,"rows_kept":316,"cut":false,"hidden":false,"merged":[[12,2,12,5],[12,6,12,9],[0,2,0,5],[0,6,0,9],[5,10,5,13],[6,2,6,5],[6,6,6,9],[34,1,34,9],[35,1,35,9],[36,1,36,9],[18,2,18,5],[18,6,18,9],[22,1,23,1],[24,2,24,5],[26,6,26,8],[33,1,33,9]]}
[1,"MIGENNES 3","  Match 1 : au 1er nommé le Mardi 26 Mars à 14h30",null,null,null,"  Match 6 : au 1er nommé le Mardi 28 Mai à 14h30"]
[2,"MEZILLES 1",{"$f":"$B$1","v":"MIGENNES 3"},{"$f":"$B$8","v":"MIGENNES 2"},30,{"$f":"IF(E2=\"\",\"\",IF(E2=\"F\",\"G\",IF(E2=\"G\",\"F\",36-E2)))","v":6},{"$f":"$B$1","v":"MIGENNES 3"},{"$f":"$B$7","v":"USV VILLENEUVE 1"},null,{"$f":"IF(I2=\"\",\"\",IF(I2=\"F\",\"G\",IF(I2=\"G\",\"F\",36-I2)))","v":""},null,null,null,null,"AUXERRE","APPOIGNY 3",20]
[3,"USC SENS 4",{"$f":"$B$2","v":"MEZILLES 1"},{"$f":"$B$3","v":"USC SENS 4"},20,{"$f":"IF(E3=\"\",\"\",IF(E3=\"F\",\"G\",IF(E3=\"G\",\"F\",36-E3)))","v":16},{"$f":"$B$2","v":"MEZILLES 1"},{"$f":"$B$4","v":"ST MARTIN TERTRE 1"},null,"",null,null,null,null,"AUXERRE","APPOIGNY 3",""]
[4,"ST MARTIN TERTRE 1",{"$f":"$B$4","v":"ST MARTIN TERTRE 1"},{"$f":"$B$7","v":"USV VILLENEUVE 1"},26,10,{"$f":"$B$3","v":"USC SENS 4"},{"$f":"$B$5","v":"ST FLORENTIN 3"},null,"",null,null,null,null,"AUXERRE","APPOIGNY 3"]
[5,"ST FLORENTIN 3",{"$f":"$B$5","v":"ST FLORENTIN 3"},{"$f":"$B$6","v":"CHARBUY 4"},12,24,{"$f":"$B$9","v":"APPOIGNY 3"},{"$f":"$B$6","v":"CHARBUY 4"},null,"",null,null,null,null,"AUXERRE","APPOIGNY 3",""]
[6,"CHARBUY 4",{"$f":"$B$10","v":"MALAY LE GRAND 1"},{"$f":"$B$9","v":"APPOIGNY 3"},16,20,{"$f":"$B$10","v":"MALAY LE GRAND 1"},{"$f":"$B$8","v":"MIGENNES 2"},null,"","Classement",null,null,null,"AUXERRE","APPOIGNY 3",""]
[7,"USV VILLENEUVE 1","  Match 2 : au 1er nommé le Mardi 09 Avril à 14h30",null,null,null,"  Match 7 : au 1er nommé le Mardi 04 Juin à 14h30",null,null,null,null,null,"Pts","+/-","AUXERRE","APPOIGNY 3"]
[8,"MIGENNES 2",{"$f":"$B$3","v":"USC SENS 4"},{"$f":"$B$1","v":"MIGENNES 3"},28,{"$f":"IF(E8=\"\",\"\",IF(E8=\"F\",\"G\",IF(E8=\"G\",\"F\",36-E8)))","v":8},{"$f":"$B$9","v":"APPOIGNY 3"},{"$f":"$B$1","v":"MIGENNES 3"},null,{"$f":"IF(I8=\"\",\"\",IF(I8=\"F\",\"G\",IF(I8=\"G\",\"F\",36-I8)))","v":""},1,{"$f":"$B$2","v":"MEZILLES 1"},9,48,"AUXERRE","APPOIGNY 3"]
[9,"APPOIGNY 3",{"$f":"$B$6","v":"CHARBUY 4"},{"$f":"$B$10","v":"MALAY LE GRAND 1"},10,26,{"$f":"$B$6","v":"CHARBUY 4"},{"$f":"$B$2","v":"MEZILLES 1"},null,"",2,{"$f":"$B$3","v":"USC SENS 4"},7,32,"AVALLON","CHARBUY 4",24]
[10,"MALAY LE GRAND 1",{"$f":"$B$7","v":"USV VILLENEUVE 1"},{"$f":"$B$5","v":"ST FLORENTIN 3"},28,8,{"$f":"$B$4","v":"ST MARTIN TERTRE 1"},{"$f":"$B$3","v":"USC SENS 4"},null,"",3,{"$f":"$B$7","v":"USV VILLENEUVE 1"},7,28,"AVALLON","CHARBUY 4"]
[null,null,{"$f":"$B$8","v":"MIGENNES 2"},{"$f":"$B$4","v":"ST MARTIN TERTRE 1"},28,8,{"$f":"$B$8","v":"MIGENNES 2"},{"$f":"$B$7","v":"USV VILLENEUVE 1"},null,"",4,"MIGENNES 3",7,20,"AVALLON","CHARBUY 4"]
[null,null,{"$f":"$B$2","v":"MEZILLES 1"},{"$f":"$B$9","v":"APPOIGNY 3"},26,10,{"$f":"$B$10","v":"MALAY LE GRAND 1"},{"$f":"$B$5","v":"ST FLORENTIN 3"},null,"",5,{"$f":"$B$4","v":"ST MARTIN TERTRE 1"},7,-16,"AVALLON","CHARBUY 4",""]
["Rappel:",null,"  Match 3 : au 1er nommé le Mardi 23 Avril à 14h30",null,null,null,"  Match 8 : au 1er nommé le Mardi 18 Juin à 14h30",null,null,null,6,{"$f":"$B$10","v":"MALAY LE GRAND 1"},5,-12,"AVALLON","CHARBUY 4",""]
["Seules les Cases Blanches",null,{"$f":"$B$8","v":"MIGENNES 2"},{"$f":"$B$3","v":"USC SENS 4"},10,{"$f":"IF(E14=\"\",\"\",IF(E14=\"F\",\"G\",IF(E14=\"G\",\"F\",36-E14)))","v":26},{"$f":"$B$4","v":"ST MARTIN TERTRE 1"},{"$f":"$B$5","v":"ST FLORENTIN 3"},null,{"$f":"IF(I14=\"\",\"\",IF(I14=\"F\",\"G\",IF(I14=\"G\",\"F\",36-I14)))","v":""},7,{"$f":"$B$8","v":"MIGENNES 2"},5,-20,"AVALLON","CHARBUY 4",""]
["sont à remplir",null,{"$f":"$B$5","v":"ST FLORENTIN 3"},{"$f":"$B$2","v":"MEZILLES 1"},4,32,{"$f":"$B$6","v":"CHARBUY 4"},{"$f":"$B$8","v":"MIGENNES 2"},null,"",8,{"$f":"$B$6","v":"CHARBUY 4"},5,-20,"AVALLON","CHARBUY 4"]
[null,null,{"$f":"$B$6","v":"CHARBUY 4"},{"$f":"$B$1","v":"MIGENNES 3"},10,26,{"$f":"$B$7","v":"USV VILLENEUVE 1"},{"$f":"$B$2","v":"MEZILLES 1"},null,"",9,{"$f":"$B$9","v":"APPOIGNY 3"},5,-32,"JOIGNY","MALAY LE GRAND 1",16]
[null,null,{"$f":"$B$7","v":"USV VILLENEUVE 1"},{"$f":"$B$10","v":"MALAY LE GRAND 1"},30,6,{"$f":"$B$3","v":"USC SENS 4"},{"$f":"$B$9","v":"APPOIGNY 3"},null,"",10,{"$f":"$B$5","v":"ST FLORENTIN 3"},3,-60,"JOIGNY","MALAY LE GRAND 1",""]
[null,null,{"$f":"$B$9","v":"APPOIGNY 3"},{"$f":"$B$4","v":"ST MARTIN TERTRE 1"},8,28,{"$f":"$B$1","v":"MIGENNES 3"},{"$f":"$B$10","v":"MALAY LE GRAND 1"},null,"",null,null,null,null,"JOIGNY","MALAY LE GRAND 1",""]
[null,null,"  Match 4 : au 1er nommé le Mardi 09 Mai à 14h30",null,null,null,"  Match 9 : au 1er nommé le Mardi 25 Juin à 14h30",null,null,null,null,null,null,null,"JOIGNY","MALAY LE GRAND 1",""]
[null,null,{"$f":"$B$5","v":"ST FLORENTIN 3"},{"$f":"$B$1","v":"MIGENNES 3"},null,{"$f":"IF(E20=\"\",\"\",IF(E20=\"F\",\"G\",IF(E20=\"G\",\"F\",36-E20)))","v":""},{"$f":"$B$3","v":"USC SENS 4"},{"$f":"$B$10","v":"MALAY LE GRAND 1"},null,{"$f":"IF(I20=\"\",\"\",IF(I20=\"F\",\"G\",IF(I20=\"G\",\"F\",36-I20)))","v":""},null,null,null,null,"JOIGNY","MALAY LE GRAND 1"]
[null,null,{"$f":"$B$2","v":"MEZILLES 1"},{"$f":"$B$10","v":"MALAY LE GRAND 1"},null,"",{"$f":"$B$1","v":"MIGENNES 3"},{"$f":"$B$4","v":"ST MARTIN TERTRE 1"},null,"",null,null,null,null,"JOIGNY","MALAY LE GRAND 1"]
[null,null,{"$f":"$B$7","v":"USV VILLENEUVE 1"},{"$f":"$B$3","v":"USC SENS 4"},null,"",{"$f":"$B$6","v":"CHARBUY 4"},{"$f":"$B$7","v":"USV VILLENEUVE 1"},null,"",null,null,null,null,"JOIGNY","MALAY LE GRAND 1"]
[null,null,{"$f":"$B$4","v":"ST MARTIN TERTRE 1"},{"$f":"$B$6","v":"CHARBUY 4"},null,"",{"$f":"$B$2","v":"MEZILLES 1"},{"$f":"$B$8","v":"MIGENNES 2"},null,"",null,null,null,null,"MIGENNES","MEZILLES 1",20]
[null,null,{"$f":"$B$8","v":"MIGENNES 2"},{"$f":"$B$9","v":"APPOIGNY 3"},null,"",{"$f":"$B$9","v":"APPOIGNY 3"},{"$f":"$B$5","v":"ST FLORENTIN 3"},null,"",null,null,null,null,"MIGENNES","MEZILLES 1"]
[null,null,"  Match 5 : au 1er nommé le Mardi 21 Mai à 14h30",null,null,null,null,null,null,null,null,null,null,null,"MIGENNES","MEZILLES 1",""]
[null,null,{"$f":"$B$1","v":"MIGENNES 3"},{"$f":"$B$2","v":"MEZILLES 1"},null,{"$f":"IF(E26=\"\",\"\",IF(E26=\"F\",\"G\",IF(E26=\"G\",\"F\",36-E26)))","v":""},null,null,null,null,null,null,null,null,"MIGENNES","MEZILLES 1"]
[null,null,{"$f":"$B$3","v":"USC SENS 4"},{"$f":"$B$6","v":"CHARBUY 4"},null,"",null,null,null,null,null,null,null,null,"MIGENNES","MEZILLES 1",""]
[null,null,{"$f":"$B$10","v":"MALAY LE GRAND 1"},{"$f":"$B$4","v":"ST MARTIN TERTRE 1"},null,"",null,null,null,null,null,null,null,null,"MIGENNES","MEZILLES 1"]
[null,null,{"$f":"$B$5","v":"ST FLORENTIN 3"},{"$f":"$B$8","v":"MIGENNES 2"},null,"",null,null,null,null,null,null,null,null,"MIGENNES","MEZILLES 1",""]
[null,null,{"$f":"$B$7","v":"USV VILLENEUVE 1"},{"$f":"$B$9","v":"APPOIGNY 3"},null,"",null,null,null,null,null,null,null,null,"SENAN","MIGENNES 2",6]
[null,null,null,null,null,null,null,null,null,null,null,null,null,null,"SENAN","MIGENNES 2"]
[null,null,null,null,null,null,null,null,null,null,null,null,null,null,"SENAN","MIGENNES 2"]
[null,null,null,null,null,null,null,null,null,null,null,null,null,null,"SENAN","MIGENNES 2"]
[null,"FÉDÉRATION FRANÇAISE DE PÉTANQUE ET JEU PROVENÇAL",null,null,null,null,null,null,null,null,null,null,null,null,"SENAN","MIGENNES 2",""]
[null,"AGRÉÉE PAR LE MINISTÈRE DE LA JEUNESSE ET  DES SPORTS ",null,null,null,null,null,null,null,null,null,null,null,null,"SENAN","MIGENNES 2",""]
[null,"TERRITOIRE DE BOURGOGNE ",null,null,null,null,null,null,null,null,null,null,null,null,"SENAN","MIGENNES 2"]
[null,"Championnat Départemental des Clubs 2024 VETERAN Division 3 Groupe Unique",null,null,null,null,null,null,null,null,null,null,null,null,"SENS","MIGENNES 3",30]
[null,null,null,null,null,null,null,null,null,null,null,null,null,null,"SENS","MIGENNES 3",""]
[null,null,null,null,null,null,null,null,null,null,null,null,null,null,"SENS","MIGENNES 3",""]
[null,null,null,null,null,null,null,null,null,null,null,null,null,null,"SENS","MIGENNES 3",""]
[null,null,null,null,null,null,null,null,null,null,null,null,null,null,"SENS","MIGENNES 3"]
[null,null,null,null,null,null,null,null,null,null,null,null,null,null,"SENS","MIGENNES 3"]
[null,null,null,null,null,null,null,null,null,null,null,null,null,null,"SENS","MIGENNES 3",""]
[null,null,null,null,null,null,null,null,null,null,null,null,null,null,"ST FLORENTIN","ST FLORENTIN 3",12]
[null,null,null,null,null,null,null,null,null,null,null,null,null,null,"ST FLORENTIN","ST FLORENTIN 3",""]
[null,null,null,null,null,null,null,null,null,null,null,null,null,null,"ST FLORENTIN","ST FLORENTIN 3"]
[null,null,null,null,null,null,null,null,null,null,null,null,null,null,"ST FLORENTIN","ST FLORENTIN 3"]
[null,null,null,null,null,null,null,null,null,null,null,null,null,null,"ST FLORENTIN","ST FLORENTIN 3"]
[null,null,null,null,null,null,null,null,null,null,null,null,null,null,"ST FLORENTIN","ST FLORENTIN 3",""]
[null,null,null,null,null,null,null,null,null,null,null,null,null,null,"ST FLORENTIN","ST FLORENTIN 3",""]
[null,null,null,null,null,null,null,null,null,null,null,null,null,null,"TO","ST MARTIN TERTRE 1",16]
[null,null,null,null,null,null,null,null,null,null,null,null,null,null,"TO","ST MARTIN TERTRE 1",""]
[null,null,null,null,null,null,null,null,null,null,null,null,null,null,"TO","ST MARTIN TERTRE 1",""]
[null,null,null,null,null,null,null,null,null,null,null,null,null,null,"TO","ST MARTIN TERTRE 1"]
[null,null,null,null,null,null,null,null,null,null,null,null,null,null,"TO","ST MARTIN TERTRE 1",""]
[null,null,null,null,null,null,null,null,null,null,null,null,null,null,"TO","ST MARTIN TERTRE 1",""]
[null,null,null,null,null,null,null,null,null,null,null,null,null,null,"TO","ST MARTIN TERTRE 1"]
[null,null,null,null,null,null,null,null,null,null,null,null,null,null,"TONNERRE","USC SENS 4",16]
[null,null,null,null,null,null,null,null,null,null,null,null,null,null,"TONNERRE","USC SENS 4"]
[null,null,null,null,null,null,null,null,null,null,null,null,null,null,"TONNERRE","USC SENS 4",""]
[null,null,null,null,null,null,null,null,null,null,null,null,null,null,"TONNERRE","USC SENS 4",""]
[null,null,null,null,null,null,null,null,null,null,null,null,null,null,"TONNERRE","USC SENS 4"]
[null,null,null,null,null,null,null,null,null,null,null,null,null,null,"TONNERRE","USC SENS 4"]
[null,null,null,null,null,null,null,null,null,null,null,null,null,null,"TONNERRE","USC SENS 4",""]
[null,null,null,null,null,null,null,null,null,null,null,null,null,null,"VAUX","USV VILLENEUVE 1",20]
[null,null,null,null,null,null,null,null,null,null,null,null,null,null,"VAUX","USV VILLENEUVE 1"]
[null,null,null,null,null,null,null,null,null,null,null,null,null,null,"VAUX","USV VILLENEUVE 1"]
[null,null,null,null,null,null,null,null,null,null,null,null,null,null,"VAUX","USV VILLENEUVE 1"]
[null,null,null,null,null,null,null,null,null,null,null,null,null,null,"VAUX","USV VILLENEUVE 1"]
[null,null,null,null,null,null,null,null,null,null,null,null,null,null,"VAUX","USV VILLENEUVE 1",""]
[null,null,null,null,null,null,null,null,null,null,null,null,null,null,"VAUX","USV VILLENEUVE 1",""]
[]
[]
[]
[]
[]
[]
[]
[]
[]
[]
[]
[]
[]
[]
[]
[]
[]
[]
[]
[]
[]
[]
[]
[]
[]
[]
[]
[]
[]
[]
[]
[]
[]
[]
[]
[]
[]
[]
[]
[]
[]
[]
[]
[]
[]
[]
[]
[]
[]
[]
[]
[]
[]
[]
[]
[]
[]
[]
[]
[]
[]
[]
[]
[]
[]
[]
[]
[]
[]
[]
[]
[]
[]
[]
[]
[]
[]
[]
[]
[]
[]
[]
[]
[]
[]
[]
[]
[]
[]
[]
[]
[]
[]
[]
[]
[]
[]
[]
[]
[]
[]
[]
[]
[]
[]
[]
[]
[]
[]
[]
[]
[]
[]
[]
[]
[]
[]
[]
[]
[]
[]
[]
[]
[]
[]
[]
[]
[]
[]
[]
[]
[]
[]
[]
[]
[]
[]
[]
[]
[]
[]
[]
[]
[]
[]
[]
[]
[]
[]
[]
[]
[]
[]
[]
[]
[]
[]
[]
[]
[]
[]
[]
[]
[]
[]
[]
[]
[]
[]
[]
[]
[]
[]
[]
[]
[]
[]
[]
[]
[]
[]
[]
[]
[]
[]
[]
[]
[]
[]
[]
[]
[]
[]
[]
[]
[]
[]
[]
[]
[]
[]
[]
[]
[]
[]
[]
[]
[]
[]
[]
[null,"1) Remplir la liste des Clubs composant le Groupe (Colonne B1 à B14)"]
[]
[null,"2) Le calendrier se fait automatiquement"]
[]
[null,"3) Pour chaque rencontre: mettre uniquemment le score de la premiere équipe (Case Blanche,la rouge sera remplie automatiquement)"]
[]
[null,"4) Le score de l'adversaire se mettra automatiquement"]
[]
[null,"Exemple:"]
[null,"L' équipe 1 Gagne par 20 à 4 : il faut mettre 20 pour le score de L'équipe 1 contre l'équipe 2 (4 sera automatique)"]
[null,null,"Essayez : Tapez 20 ici"]
[]
[null,null,{"$f":"$B$1","v":"MIGENNES 3"},{"$f":"$B$2","v":"MEZILLES 1"},null,{"$f":"IF(E294=\"\",\"\",IF(E294=\"F\",\"G\",IF(E294=\"G\",\"F\",36-E294)))","v":""}]
[null,null,{"$f":"$B$3","v":"USC SENS 4"},"Equipe 4",null,{"$f":"IF(E295=\"\",\"\",IF(E295=\"F\",\"G\",IF(E295=\"G\",\"F\",36-E295)))","v":""}]
[]
[null,null,"Essayez : Tapez 6 ici"]
[]
[null,"L' équipe 4 Gagne par 18 à 6 : il faut mettre 6 pour le score de L'équipe 3 contre l'équipe 2 (18  sera automatique)"]
[]
[null,"5) Pour le Forfait : Mettre F si Premiere equipe Forfait sinon mettre G"]
[]
[null,"Exemple:"]
[null,"L' équipe 1 est forfait : il faut mettre un F pour le score de L'équipe 1 contre l'équipe 2 (G est automatique)"]
[null,null,"Essayez : Tapez un F ici"]
[]
[null,null,{"$f":"$B$1","v":"MIGENNES 3"},{"$f":"$B$2","v":"MEZILLES 1"},null,{"$f":"IF(E307=\"\",\"\",IF(E307=\"F\",\"G\",IF(E307=\"G\",\"F\",36-E307)))","v":""}]
[null,null,{"$f":"$B$3","v":"USC SENS 4"},"Equipe 4",null,{"$f":"IF(E308=\"\",\"\",IF(E308=\"F\",\"G\",IF(E308=\"G\",\"F\",36-E308)))","v":""}]
[]
[null,null,"Essayez : Tapez un G ici"]
[null,"L' équipe 4 est forfait : il faut mettre un G pour le score de L'équipe 3 contre l'équipe 4 (F est automatique)"]
[]
[]
[null,"En cas de Forfait : le score attribué est 13 à 0"]
[]
[null,"Ne pas oublier d'appuyer sur le bouton Maj Classement sous le Classement"]

{"sheet":"REPARTITION","index":5,"n_rows":33,"n_cols":10,"rows_kept":33,"cut":false,"hidden":false,"merged":[]}
[null,"PARON 1","1/16","A","VERON 2","1/16","A","MIGENNES 2","1/16","U"]
[null,"USC SENS 3","2/16","A","VAUX 2","2/16","B","USC SENS 4","2/16","U"]
[null,"VAUX 1","3/16","B","CHARBUY 2","3/16","A","MIGENNES 3","3/16","U"]
[null,"APPOIGNY 1","4/16","B","APPOIGNY 2","4/16","A","CHARBUY 4","4/16","U"]
[null,"USC SENS 1","5/16","A","MONETEAU 2","5/16","B","ST FLORENTIN 3","5/16","U"]
[null,"MIGENNES 1","6/16","A","ST FLORENTIN 2","6/16","A","ST MARTIN TERTRE 1","6/16","U"]
[null,"ANCY LE FRANC 1","7/16","B","ANCY LE FRANC 2","7/16","B","USV VILLENEUVE/YONNE 1","7/16","U"]
[null,"RAVIERES 1","8/16","B","STADE DE SENS 2","8/16","A","MEZILLES 1","8/16","U"]
[null,"SENAN 1","9/16","A","CHATEL CENSOIR 1","9/16","B","APPOIGNY 3","9/16","U"]
[null,"USC SENS 2","10/16","B","SENAN 2","10/16","A",null,"10/16"]
[null,"PONT / YONNE 1","11/16","A","HERY 1","11/16","B",null,"11/16"]
[null,"CHARBUY 1","12/16","B","AILLANT 1","12/16","A",null,"12/16"]
[null,"MONETEAU 1","13/16","A","JOIGNY 1","13/16","A","LIGNY CHATEL 1","13/16"]
[null,"STADE AUXERRE 2","14/16","B","BLENEAU 1","14/16","B",null,"14/16"]
[null,"VERON 1","15/16","A","CHARBUY 3","15/16","B",null,"15/16"]
[null,"AVALLON 1","16/16","B","AVALLON 2","16/16","B",null,"16/16"]
[]
[]
[]
[]
[]
[]
[]
[]
[]
[]
[]
[]
[]
[]
[]
[]
[null,null,null,null,"."]

{"sheet":"CLASST 2023 VETERANS","index":6,"n_rows":55,"n_cols":8,"rows_kept":55,"cut":false,"hidden":false,"merged":[[1,5,1,6],[3,5,3,6],[4,5,4,6],[5,5,5,6],[7,5,7,6]]}
[null,1,"STADE AUXERRE 1"]
[null,2,"PARON 1","1/16","A","montée en CRC 1"]
[null,3,"STADE DE SENS 1"]
[null,4,"ST FLORENTIN 1",null,null,"montée en CRC 2"]
[null,5,"USC SENS 3","2/16","A"]
[null,6,"VAUX 1","3/16","B","montée en div supérieure"]
[null,7,"APPOIGNY 1","4/16","B"]
[null,8,"USC SENS 1","5/16","A","descente en div inferieure"]
[null,9,"MIGENNES 1","6/16","A"]
[null,10,"ANCY LE FRANC 1","7/16","B"]
[null,11,"RAVIERES 1","8/16","B"]
[null,12,"SENAN 1","9/16","A"]
[null,13,"USC SENS 2","10/16","B"]
[null,14,"PONT / YONNE 1","11/16","A"]
[null,15,"CHARBUY 1","12/16","A"]
[null,16,"AILLANT 1","13/16","B"]
[]
[null,17,"STADE AUXERRE 2","14/16","A"]
[null,18,"VERON 1","15/16","B"]
[null,19,"AVALLON 1","16/16","B"]
[null,20,"MONETEAU 2","1/16","A"]
[null,21,"VAUX 2","2/16","B"]
[null,22,"CHARBUY 2","3/16","B"]
[null,23,"APPOIGNY 2","4/16","A"]
[null,24,"MONETEAU 1","5/16","A"]
[null,25,"ST FLORENTIN 2","6/16","B"]
[null,26,"ANCY LE FRANC 2","7/16","A"]
[null,27,"STADE DE SENS 2","8/16","B"]
[null,28,"CHATEL CENSOIR 1","9/16","A"]
[null,29,"SENAN 2","10/16","B"]
[null,30,"HERY 1","11/16","A"]
[null,31,"MIGENNES 2","12/16","B"]
[null,32,"JOIGNY 1","13/16","A"]
[]
[null,33,"BLENEAU 1","14/16","B"]
[null,34,"CHARBUY 3","15/16","A",null,"    "]
[null,35,"AVALLON 2","16/16","B"]
[null,36,"VERON 2","1/16","U",null,null,"."]
[null,37,"USC SENS 4","2/16","U"]
[null,38,"MIGENNES 3","3/16","U"]
[null,39,"CHARBUY 4","4/16","U"]
[null,40,"ST FLORENTIN 3","5/16","U"]
[null,41,"ST MARTIN TERTRE 1","6/16","U"]
[null,42,"USV VILLENEUVE/YONNE","7/16","U"]
[]
[null,43,"MEZILLES 1","8/16"]
[null,44,"APPOIGNY 3","9/16"]
[null,45,null,"10/16"]
[null,46,null,"11/16"]
[null,47,null,"12/16"]
[null,48,null,"13/16"]
[null,49,null,"14/16"]
[null,50,null,"15/16"]
[null,51,null,"16/16"]
[null,25,"LIGNY CHATEL 1"]